Workbook

Sheet Orçamento
O3: UNIDADE ESCOLAR | W3: CÓDIGO INEP
O4: COLÉGIO ESTADUAL SÃO GERALDO | W4: 52038343
A6: Nmax | M6: Ajustar altura? | O6: OBRA | S6: DATA | W6: CIDADE
A7: =MAX($C$18:$C$459) -> 3 | M7: SIM | O7: AMPLIAÇÃO E REFORMA | S7: 2020-04-08 | W7: GOIANIRA
O9: CRECE | R9: ENDEREÇO | W9: REFERÊNCIA AGETOP
O10: INHUMAS | R10: RUA 1 S/N, VILA LEO LYNCE, CEP:75370-000 | W10: DEZ/18 | Y10: NÃO DESONERADA
O12: ÁREA EXISTENTE (M²) | R12: ÁREA A CONSTRUIR (M²) | S12: ÁREA TOTAL CONSTRUÍDA (M²) | W12: REFERÊNCIA SINAPI
O13: 1885 | R13: 619.21 | S13: 2504.21 | W13: JAN/19 | Y13: NÃO DESONERADA
L15: FILTRO | O15: PLANILHA ORÇAMENTÁRIA
A16: Nível E | B16: Save Nivel | C16: Nível C | D16: Altura | E16: n1 | F16: n2 | G16: n3 | H16: n4 | I16: n5 | J16: Czero | K16: Cnível | L16: ↓ | M16: Nível | N16: Nível Corrigido | O16: ITEM | P16: TABELA | Q16: CODIGO | R16: DESCRIÇÃO DOS SERVIÇOS | S16: UNID | T16: QUANT UNIT | U16: QUANT TOTAL | V16: MAT | W16: MO | X16: VALOR UNIT | Y16: VALOR TOTAL | Z16: OBSERVAÇÕES¹
A17: =CHOOSE(1+LOG(1+2*(ORÇAMENTO.Nivel="Nível 1")+4*(ORÇAMENTO.Nivel="Nível 2")+8*(ORÇAMENTO.Nivel="Nível 3")+16*(ORÇAMENTO.Nivel="Nível 4")+32*(ORÇAMENTO.Nivel="Serviço"),2),0,1,2,3,4,"S") -> S | B17: =IF(OR(C17="s",C17=0),OFFSET(B17,-1,0),C17) -> Save Nivel | C17: =IF(OFFSET(C17,-1,0)="L",1,IF(OFFSET(C17,-1,0)=1,2,IF(OR(A17="s",A17=0),"S",IF(AND(OFFSET(C17,-1,0)=2,A17=4),3,IF(AND(OR(OFFSET(C17,-1,0)="s",OFFSET(C17,-1,0)=0),A17<>"s",A17>OFFSET(B17,-1,0)),OFFSET(B17,-1,0),A17))))) -> S | D17: =IF(OR(C17="S",C17=0),0,IF(ISERROR(K17),J17,SMALL(J17:K17,1))) -> 0 | E17: =IF($C17=1,OFFSET(E17,-1,0)+1,OFFSET(E17,-1,0)) -> n1 | F17: =IF($C17=1,0,IF($C17=2,OFFSET(F17,-1,0)+1,OFFSET(F17,-1,0))) -> n2 | G17: =IF(AND($C17<=2,$C17<>0),0,IF($C17=3,OFFSET(G17,-1,0)+1,OFFSET(G17,-1,0))) -> n3 | H17: =IF(AND($C17<=3,$C17<>0),0,IF($C17=4,OFFSET(H17,-1,0)+1,OFFSET(H17,-1,0))) -> n4 | I17: =IF(AND($C17<=4,$C17<>0),0,IF(AND($C17="S",$Y17>0),OFFSET(I17,-1,0)+1,OFFSET(I17,-1,0))) -> n5 | J17: =IF(OR($C17="S",$C17=0),0,MATCH(0,OFFSET($D17,1,$C17,ROW($C$459)-ROW($C17)),0)) -> 0 | K17: =IF(OR($C17="S",$C17=0),0,MATCH(OFFSET($D17,0,$C17)+1,OFFSET($D17,1,$C17,ROW($C$459)-ROW($C17)),0)) -> 0 | M17: Serviço | N17: Serviço | O17: - | P17: SINAPI | R17: (sem código) | S17: - | V17: 0 | W17: 0 | Y17: 0
A18: 0 | C18: L | D18: =COUNTA(OFFSET(D18,1,0):#REF!) -> 1 | E18: =LEFT(O19,1)-1 -> 0 | L18: F | M18: LOTE | N18: LOTE | O18: AMPLIAÇÃO E REFORMA - COLÉGIO ESTADUAL SÃO GERALDO | Y18: 0
A19: 1 | B19: =IF(OR(C19="s",C19=0),OFFSET(B19,-1,0),C19) -> 1 | C19: =IF(OFFSET(C19,-1,0)="L",1,IF(OFFSET(C19,-1,0)=1,2,IF(OR(A19="s",A19=0),"S",IF(AND(OFFSET(C19,-1,0)=2,A19=4),3,IF(AND(OR(OFFSET(C19,-1,0)="s",OFFSET(C19,-1,0)=0),A19<>"s",A19>OFFSET(B19,-1,0)),OFFSET(B19,-1,0),A19))))) -> 1 | D19: =IF(OR(C19="S",C19=0),0,IF(ISERROR(K19),J19,SMALL(J19:K19,1))) -> 146 | E19: =IF($C19=1,OFFSET(E19,-1,0)+1,OFFSET(E19,-1,0)) -> 1 | F19: =IF($C19=1,0,IF($C19=2,OFFSET(F19,-1,0)+1,OFFSET(F19,-1,0))) -> 0 | G19: =IF(AND($C19<=2,$C19<>0),0,IF($C19=3,OFFSET(G19,-1,0)+1,OFFSET(G19,-1,0))) -> 0 | H19: =IF(AND($C19<=3,$C19<>0),0,IF($C19=4,OFFSET(H19,-1,0)+1,OFFSET(H19,-1,0))) -> 0 | I19: 0 | J19: =IF(OR($C19="S",$C19=0),0,MATCH(0,OFFSET($D19,1,$C19,ROW($C$459)-ROW($C19)),0)) -> 440 | K19: =IF(OR($C19="S",$C19=0),0,MATCH(OFFSET($D19,0,$C19)+1,OFFSET($D19,1,$C19,ROW($C$459)-ROW($C19)),0)) -> 146 | L19: F | M19: Nível 1 | N19: Nível 1 | O19: 1. | R19: REFORMA | T19: 1 | Y19: 0
A20: 2 | B20: =IF(OR(C20="s",C20=0),OFFSET(B20,-1,0),C20) -> 2 | C20: =IF(OFFSET(C20,-1,0)="L",1,IF(OFFSET(C20,-1,0)=1,2,IF(OR(A20="s",A20=0),"S",IF(AND(OFFSET(C20,-1,0)=2,A20=4),3,IF(AND(OR(OFFSET(C20,-1,0)="s",OFFSET(C20,-1,0)=0),A20<>"s",A20>OFFSET(B20,-1,0)),OFFSET(B20,-1,0),A20))))) -> 2 | D20: =IF(OR(C20="S",C20=0),0,IF(ISERROR(K20),J20,SMALL(J20:K20,1))) -> 8 | E20: =IF($C20=1,OFFSET(E20,-1,0)+1,OFFSET(E20,-1,0)) -> 1 | F20: =IF($C20=1,0,IF($C20=2,OFFSET(F20,-1,0)+1,OFFSET(F20,-1,0))) -> 1 | G20: =IF(AND($C20<=2,$C20<>0),0,IF($C20=3,OFFSET(G20,-1,0)+1,OFFSET(G20,-1,0))) -> 0 | H20: =IF(AND($C20<=3,$C20<>0),0,IF($C20=4,OFFSET(H20,-1,0)+1,OFFSET(H20,-1,0))) -> 0 | I20: 0 | J20: 145 | K20: 8 | M20: Nível 2 | N20: Nível 2 | O20: - | R20: SERVIÇOS PRELIMINARES | Y20: 0
A21: =CHOOSE(1+LOG(1+2*(ORÇAMENTO.Nivel="Nível 1")+4*(ORÇAMENTO.Nivel="Nível 2")+8*(ORÇAMENTO.Nivel="Nível 3")+16*(ORÇAMENTO.Nivel="Nível 4")+32*(ORÇAMENTO.Nivel="Serviço"),2),0,1,2,3,4,"S") -> S | B21: 2 | C21: S | D21: 0 | E21: =IF($C21=1,OFFSET(E21,-1,0)+1,OFFSET(E21,-1,0)) -> 1 | F21: =IF($C21=1,0,IF($C21=2,OFFSET(F21,-1,0)+1,OFFSET(F21,-1,0))) -> 1 | G21: =IF(AND($C21<=2,$C21<>0),0,IF($C21=3,OFFSET(G21,-1,0)+1,OFFSET(G21,-1,0))) -> 0 | H21: =IF(AND($C21<=3,$C21<>0),0,IF($C21=4,OFFSET(H21,-1,0)+1,OFFSET(H21,-1,0))) -> 0 | I21: =IF(AND($C21<=4,$C21<>0),0,IF(AND($C21="S",$Y21>0),OFFSET(I21,-1,0)+1,OFFSET(I21,-1,0))) -> 0 | J21: 0 | K21: 0 | M21: Serviço | N21: Serviço | O21: - | P21: SINAPI | Q21: 98529 | R21: CORTE RASO E RECORTE DE ÁRVORE COM DIÂMETRO DE TRONCO MAIOR OU IGUAL A 0,20 M E MENOR QUE 0,40 M.AF_05/2018 | S21: UN | T21: 1 | U21: 1 | X21: 0 | Y21: 0
A22: S | B22: 2 | C22: S | D22: 0 | E22: 1 | F22: 1 | G22: 0 | H22: 0 | I22: 0 | J22: 0 | K22: 0 | M22: Serviço | N22: Serviço | O22: - | P22: SINAPI | Q22: 98526 | R22: REMOÇÃO DE RAÍZES REMANESCENTES DE TRONCO DE ÁRVORE COM DIÂMETRO MAIOR OU IGUAL A 0,20 M E MENOR QUE 0,40 M.AF_05/2018 | S22: UN | T22: 1 | U22: 1 | X22: 0 | Y22: 0
A23: S | B23: 2 | C23: S | D23: 0 | E23: 1 | F23: 1 | G23: 0 | H23: 0 | I23: 0 | J23: 0 | K23: 0 | M23: Serviço | N23: Serviço | O23: - | P23: AGETOP | Q23: 20105 | R23: DEMOL.FORRO PAULISTA C/TRANSP.ATE CB.E CARGA | S23: m2 | T23: 49.6 | U23: 49.6 | X23: 0 | Y23: 0
A24: S | B24: 2 | C24: S | D24: 0 | E24: 1 | F24: 1 | G24: 0 | H24: 0 | I24: 0 | J24: 0 | K24: 0 | M24: Serviço | N24: Serviço | O24: - | P24: AGETOP | Q24: 20109 | R24: DEM.PISO CIMENT.SOBRE LASTRO CONC.C/TR.ATE CB. E CARGA | S24: m2 | T24: 64.2 | U24: 64.2 | X24: 0 | Y24: 0
A25: S | B25: 2 | C25: S | D25: 0 | E25: 1 | F25: 1 | G25: 0 | H25: 0 | I25: 0 | J25: 0 | K25: 0 | M25: Serviço | N25: Serviço | O25: - | P25: SINAPI | Q25: 97622 | R25: DEMOLIÇÃO DE ALVENARIA DE BLOCO FURADO, DE FORMA MANUAL, SEM REAPROVEITAMENTO. AF_12/2017 | S25: M3 | T25: 1 | U25: 1 | X25: 0 | Y25: 0 | Z25: Referência: AGETOP - 20118
A26: S | B26: 2 | C26: S | D26: 0 | E26: 1 | F26: 1 | G26: 0 | H26: 0 | I26: 0 | J26: 0 | K26: 0 | M26: Serviço | N26: Serviço | O26: - | P26: SINAPI | Q26: 97645 | R26: REMOÇÃO DE JANELAS, DE FORMA MANUAL, SEM REAPROVEITAMENTO. AF_12/2017 | S26: M2 | T26: 7.68 | U26: 7.68 | X26: 0 | Y26: 0 | Z26: Referência: AGETOP - 20106
A27: S | B27: 2 | C27: S | D27: 0 | E27: 1 | F27: 1 | G27: 0 | H27: 0 | I27: 0 | J27: 0 | K27: 0 | M27: Serviço | N27: Serviço | O27: - | P27: SINAPI | Q27: 74209/1 | R27: PLACA DE OBRA EM CHAPA DE ACO GALVANIZADO | S27: M2 | T27: 4.5 | U27: 4.5 | X27: 0 | Y27: 0 | Z27: Referência: AGETOP - 21301
A28: 2 | B28: 2 | C28: 2 | D28: 3 | E28: 1 | F28: 2 | G28: 0 | H28: 0 | I28: 0 | J28: 137 | K28: 3 | M28: Nível 2 | N28: Nível 2 | O28: - | P28: SINAPI | R28: SERVIÇO EM TERRA | S28: - | U28: 0 | X28: 0 | Y28: 0
A29: S | B29: 2 | C29: S | D29: 0 | E29: 1 | F29: 2 | G29: 0 | H29: 0 | I29: 0 | J29: 0 | K29: 0 | M29: Serviço | N29: Serviço | O29: - | P29: SINAPI | Q29: 93358 | R29: ESCAVAÇÃO MANUAL DE VALA COM PROFUNDIDADE MENOR OU IGUAL A 1,30 M. AF_03/2016 | S29: M3 | T29: 11.7 | U29: 11.7 | X29: 0 | Y29: 0 | Z29: Referência: AGETOP - 40101
A30: S | B30: 2 | C30: S | D30: 0 | E30: 1 | F30: 2 | G30: 0 | H30: 0 | I30: 0 | J30: 0 | K30: 0 | M30: Serviço | N30: Serviço | O30: - | P30: SINAPI | Q30: 96995 | R30: REATERRO MANUAL APILOADO COM SOQUETE. AF_10/2017 | S30: M3 | T30: 11.7 | U30: 11.7 | X30: 0 | Y30: 0 | Z30: Referência: AGETOP - 40902
A31: 2 | B31: 2 | C31: 2 | D31: 3 | E31: 1 | F31: 3 | G31: 0 | H31: 0 | I31: 0 | J31: 134 | K31: 3 | M31: Nível 2 | N31: Nível 2 | O31: - | P31: SINAPI | R31: TRANSPORTES | S31: - | U31: 0 | X31: 0 | Y31: 0
A32: S | B32: 2 | C32: S | D32: 0 | E32: 1 | F32: 3 | G32: 0 | H32: 0 | I32: 0 | J32: 0 | K32: 0 | M32: Serviço | N32: Serviço | O32: - | P32: SINAPI | Q32: 72900 | R32: TRANSPORTE DE ENTULHO COM CAMINHAO BASCULANTE 6 M3, RODOVIA PAVIMENTADA, DMT 0,5 A 1,0 KM | S32: M3 | T32: 5.97 | U32: 5.97 | X32: 0 | Y32: 0
A33: S | B33: 2 | C33: S | D33: 0 | E33: 1 | F33: 3 | G33: 0 | H33: 0 | I33: 0 | J33: 0 | K33: 0 | M33: Serviço | N33: Serviço | O33: - | P33: SINAPI | Q33: 72897 | R33: CARGA MANUAL DE ENTULHO EM CAMINHAO BASCULANTE 6 M3 | S33: M3 | T33: 5.97 | U33: 5.97 | X33: 0 | Y33: 0
A34: =CHOOSE(1+LOG(1+2*(ORÇAMENTO.Nivel="Nível 1")+4*(ORÇAMENTO.Nivel="Nível 2")+8*(ORÇAMENTO.Nivel="Nível 3")+16*(ORÇAMENTO.Nivel="Nível 4")+32*(ORÇAMENTO.Nivel="Serviço"),2),0,1,2,3,4,"S") -> 2 | B34: 2 | C34: 2 | D34: 36 | E34: =IF($C34=1,OFFSET(E34,-1,0)+1,OFFSET(E34,-1,0)) -> 1 | F34: =IF($C34=1,0,IF($C34=2,OFFSET(F34,-1,0)+1,OFFSET(F34,-1,0))) -> 4 | G34: =IF(AND($C34<=2,$C34<>0),0,IF($C34=3,OFFSET(G34,-1,0)+1,OFFSET(G34,-1,0))) -> 0 | H34: =IF(AND($C34<=3,$C34<>0),0,IF($C34=4,OFFSET(H34,-1,0)+1,OFFSET(H34,-1,0))) -> 0 | I34: =IF(AND($C34<=4,$C34<>0),0,IF(AND($C34="S",$Y34>0),OFFSET(I34,-1,0)+1,OFFSET(I34,-1,0))) -> 0 | J34: 131 | K34: 36 | M34: Nível 2 | N34: Nível 2 | O34: - | R34: INSTALAÇÕES ELÉTRICAS | S34: - | U34: 0 | X34: 0 | Y34: 0
A35: S | B35: 2 | C35: S | D35: 0 | E35: 1 | F35: 4 | G35: 0 | H35: 0 | I35: 0 | J35: 0 | K35: 0 | M35: Serviço | N35: Serviço | O35: - | P35: SINAPI | Q35: 91927 | R35: CABO DE COBRE FLEXÍVEL ISOLADO, 2,5 MM², ANTI-CHAMA 0,6/1,0 KV, PARA CIRCUITOS TERMINAIS - FORNECIMENTO E INSTALAÇÃO. AF_12/2015 | S35: M | T35: 1600 | U35: 1600 | X35: 0 | Y35: 0 | Z35: Referência: AGETOP - 70581
A36: S | B36: 2 | C36: S | D36: 0 | E36: 1 | F36: 4 | G36: 0 | H36: 0 | I36: 0 | J36: 0 | K36: 0 | M36: Serviço | N36: Serviço | O36: - | P36: SINAPI | Q36: 91928 | R36: CABO DE COBRE FLEXÍVEL ISOLADO, 4 MM², ANTI-CHAMA 450/750 V, PARA CIRCUITOS TERMINAIS - FORNECIMENTO E INSTALAÇÃO. AF_12/2015 | S36: M | T36: 315 | U36: 315 | X36: 0 | Y36: 0 | Z36: Referência: AGETOP - 70582
A37: S | B37: 2 | C37: S | D37: 0 | E37: 1 | F37: 4 | G37: 0 | H37: 0 | I37: 0 | J37: 0 | K37: 0 | M37: Serviço | N37: Serviço | O37: - | P37: SINAPI | Q37: 91931 | R37: CABO DE COBRE FLEXÍVEL ISOLADO, 6 MM², ANTI-CHAMA 0,6/1,0 KV, PARA CIRCUITOS TERMINAIS - FORNECIMENTO E INSTALAÇÃO. AF_12/2015 | S37: M | T37: 750 | U37: 750 | X37: 0 | Y37: 0 | Z37: Referência: AGETOP - 70583
A38: S | B38: 2 | C38: S | D38: 0 | E38: 1 | F38: 4 | G38: 0 | H38: 0 | I38: 0 | J38: 0 | K38: 0 | M38: Serviço | N38: Serviço | O38: - | P38: SINAPI | Q38: 92980 | R38: CABO DE COBRE FLEXÍVEL ISOLADO, 10 MM², ANTI-CHAMA 0,6/1,0 KV, PARA DISTRIBUIÇÃO - FORNECIMENTO E INSTALAÇÃO. AF_12/2015 | S38: M | T38: 90 | U38: 90 | X38: 0 | Y38: 0
A39: S | B39: 2 | C39: S | D39: 0 | E39: 1 | F39: 4 | G39: 0 | H39: 0 | I39: 0 | J39: 0 | K39: 0 | M39: Serviço | N39: Serviço | O39: - | P39: SINAPI | Q39: 91935 | R39: CABO DE COBRE FLEXÍVEL ISOLADO, 16 MM², ANTI-CHAMA 0,6/1,0 KV, PARA CIRCUITOS TERMINAIS - FORNECIMENTO E INSTALAÇÃO. AF_12/2015 | S39: M | T39: 240 | U39: 240 | X39: 0 | Y39: 0 | Z39: Referência: AGETOP - 70585
A40: S | B40: 2 | C40: S | D40: 0 | E40: 1 | F40: 4 | G40: 0 | H40: 0 | I40: 0 | J40: 0 | K40: 0 | M40: Serviço | N40: Serviço | O40: - | P40: SINAPI | Q40: 92984 | R40: CABO DE COBRE FLEXÍVEL ISOLADO, 25 MM², ANTI-CHAMA 0,6/1,0 KV, PARA DISTRIBUIÇÃO - FORNECIMENTO E INSTALAÇÃO. AF_12/2015 | S40: M | T40: 180 | U40: 180 | X40: 0 | Y40: 0 | Z40: Referência: AGETOP - 70586
A41: S | B41: 2 | C41: S | D41: 0 | E41: 1 | F41: 4 | G41: 0 | H41: 0 | I41: 0 | J41: 0 | K41: 0 | M41: Serviço | N41: Serviço | O41: - | P41: SINAPI | Q41: 91936 | R41: CAIXA OCTOGONAL 4" X 4", PVC, INSTALADA EM LAJE - FORNECIMENTO E INSTALAÇÃO. AF_12/2015 | S41: UN | T41: 44 | U41: 44 | X41: 0 | Y41: 0
A42: S | B42: 2 | C42: S | D42: 0 | E42: 1 | F42: 4 | G42: 0 | H42: 0 | I42: 0 | J42: 0 | K42: 0 | M42: Serviço | N42: Serviço | O42: - | P42: SINAPI | Q42: 91940 | R42: CAIXA RETANGULAR 4" X 2" MÉDIA (1,30 M DO PISO), PVC, INSTALADA EM PAREDE - FORNECIMENTO E INSTALAÇÃO. AF_12/2015 | S42: UN | T42: 20 | U42: 20 | X42: 0 | Y42: 0
A43: S | B43: 2 | C43: S | D43: 0 | E43: 1 | F43: 4 | G43: 0 | H43: 0 | I43: 0 | J43: 0 | K43: 0 | M43: Serviço | N43: Serviço | O43: - | P43: SINAPI | Q43: 97886 | R43: CAIXA ENTERRADA ELÉTRICA RETANGULAR, EM ALVENARIA COM TIJOLOS CERÂMICOS MACIÇOS, FUNDO COM BRITA, DIMENSÕES INTERNAS: 0,3X0,3X0,3 M. AF_05/2018 | S43: UN | T43: 2 | U43: 2 | X43: 0 | Y43: 0
A44: S | B44: 2 | C44: S | D44: 0 | E44: 1 | F44: 4 | G44: 0 | H44: 0 | I44: 0 | J44: 0 | K44: 0 | M44: Serviço | N44: Serviço | O44: - | P44: SINAPI | Q44: 97891 | R44: CAIXA ENTERRADA ELÉTRICA RETANGULAR, EM ALVENARIA COM BLOCOS DE CONCRETO, FUNDO COM BRITA, DIMENSÕES INTERNAS: 0,4X0,4X0,4 M. AF_05/2018 | S44: UN | T44: 5 | U44: 5 | X44: 0 | Y44: 0
A45: S | B45: 2 | C45: S | D45: 0 | E45: 1 | F45: 4 | G45: 0 | H45: 0 | I45: 0 | J45: 0 | K45: 0 | M45: Serviço | N45: Serviço | O45: - | P45: SINAPI | Q45: 83446 | R45: CAIXA DE PASSAGEM 30X30X40 COM TAMPA E DRENO BRITA | S45: UN | T45: 1 | U45: 1 | X45: 0 | Y45: 0
A46: S | B46: 2 | C46: S | D46: 0 | E46: 1 | F46: 4 | G46: 0 | H46: 0 | I46: 0 | J46: 0 | K46: 0 | M46: Serviço | N46: Serviço | O46: - | P46: SINAPI | Q46: 95817 | R46: CONDULETE DE PVC, TIPO X, PARA ELETRODUTO DE PVC SOLDÁVEL DN 25 MM (3/4''), APARENTE - FORNECIMENTO E INSTALAÇÃO. AF_11/2016 | S46: UN | T46: 20 | U46: 20 | X46: 0 | Y46: 0
A47: S | B47: 2 | C47: S | D47: 0 | E47: 1 | F47: 4 | G47: 0 | H47: 0 | I47: 0 | J47: 0 | K47: 0 | M47: Serviço | N47: Serviço | O47: - | P47: SINAPI | Q47: 91914 | R47: CURVA 90 GRAUS PARA ELETRODUTO, PVC, ROSCÁVEL, DN 25 MM (3/4"), PARA CIRCUITOS TERMINAIS, INSTALADA EM PAREDE - FORNECIMENTO E INSTALAÇÃO. AF_12/2015 | S47: UN | T47: 30 | U47: 30 | X47: 0 | Y47: 0
A48: S | B48: 2 | C48: S | D48: 0 | E48: 1 | F48: 4 | G48: 0 | H48: 0 | I48: 0 | J48: 0 | K48: 0 | M48: Serviço | N48: Serviço | O48: - | P48: SINAPI | Q48: 93018 | R48: CURVA 90 GRAUS PARA ELETRODUTO, PVC, ROSCÁVEL, DN 50 MM (1 1/2") - FORNECIMENTO E INSTALAÇÃO. AF_12/2015 | S48: UN | T48: 6 | U48: 6 | X48: 0 | Y48: 0
A49: S | B49: 2 | C49: S | D49: 0 | E49: 1 | F49: 4 | G49: 0 | H49: 0 | I49: 0 | J49: 0 | K49: 0 | M49: Serviço | N49: Serviço | O49: - | P49: SINAPI | Q49: 93654 | R49: DISJUNTOR MONOPOLAR TIPO DIN, CORRENTE NOMINAL DE 16A - FORNECIMENTO E INSTALAÇÃO. AF_04/2016 | S49: UN | T49: 15 | U49: 15 | X49: 0 | Y49: 0
A50: S | B50: 2 | C50: S | D50: 0 | E50: 1 | F50: 4 | G50: 0 | H50: 0 | I50: 0 | J50: 0 | K50: 0 | M50: Serviço | N50: Serviço | O50: - | P50: SINAPI | Q50: 93657 | R50: DISJUNTOR MONOPOLAR TIPO DIN, CORRENTE NOMINAL DE 32A - FORNECIMENTO E INSTALAÇÃO. AF_04/2016 | S50: UN | T50: 1 | U50: 1 | X50: 0 | Y50: 0
A51: S | B51: 2 | C51: S | D51: 0 | E51: 1 | F51: 4 | G51: 0 | H51: 0 | I51: 0 | J51: 0 | K51: 0 | M51: Serviço | N51: Serviço | O51: - | P51: SINAPI | Q51: 93671 | R51: DISJUNTOR TRIPOLAR TIPO DIN, CORRENTE NOMINAL DE 32A - FORNECIMENTO E INSTALAÇÃO. AF_04/2016 | S51: UN | T51: 5 | U51: 5 | X51: 0 | Y51: 0
A52: S | B52: 2 | C52: S | D52: 0 | E52: 1 | F52: 4 | G52: 0 | H52: 0 | I52: 0 | J52: 0 | K52: 0 | M52: Serviço | N52: Serviço | O52: - | P52: SINAPI | Q52: 93673 | R52: DISJUNTOR TRIPOLAR TIPO DIN, CORRENTE NOMINAL DE 50A - FORNECIMENTO E INSTALAÇÃO. AF_04/2016 | S52: UN | T52: 2 | U52: 2 | X52: 0 | Y52: 0
A53: S | B53: 2 | C53: S | D53: 0 | E53: 1 | F53: 4 | G53: 0 | H53: 0 | I53: 0 | J53: 0 | K53: 0 | M53: Serviço | N53: Serviço | O53: - | P53: SINAPI | Q53: 74130/5 | R53: DISJUNTOR TERMOMAGNETICO TRIPOLAR PADRAO NEMA (AMERICANO) 60 A 100A 240V, FORNECIMENTO E INSTALACAO | S53: UN | T53: 3 | U53: 3 | X53: 0 | Y53: 0
A54: S | B54: 2 | C54: S | D54: 0 | E54: 1 | F54: 4 | G54: 0 | H54: 0 | I54: 0 | J54: 0 | K54: 0 | M54: Serviço | N54: Serviço | O54: - | P54: SINAPI | Q54: 91834 | R54: ELETRODUTO FLEXÍVEL CORRUGADO, PVC, DN 25 MM (3/4"), PARA CIRCUITOS TERMINAIS, INSTALADO EM FORRO - FORNECIMENTO E INSTALAÇÃO. AF_12/2015 | S54: M | T54: 183 | U54: 183 | X54: 0 | Y54: 0
A55: S | B55: 2 | C55: S | D55: 0 | E55: 1 | F55: 4 | G55: 0 | H55: 0 | I55: 0 | J55: 0 | K55: 0 | M55: Serviço | N55: Serviço | O55: - | P55: SINAPI | Q55: 91836 | R55: ELETRODUTO FLEXÍVEL CORRUGADO, PVC, DN 32 MM (1"), PARA CIRCUITOS TERMINAIS, INSTALADO EM FORRO - FORNECIMENTO E INSTALAÇÃO. AF_12/2015 | S55: M | T55: 24 | U55: 24 | X55: 0 | Y55: 0
A56: S | B56: 2 | C56: S | D56: 0 | E56: 1 | F56: 4 | G56: 0 | H56: 0 | I56: 0 | J56: 0 | K56: 0 | M56: Serviço | N56: Serviço | O56: - | P56: SINAPI | Q56: 93008 | R56: ELETRODUTO RÍGIDO ROSCÁVEL, PVC, DN 50 MM (1 1/2") - FORNECIMENTO E INSTALAÇÃO. AF_12/2015 | S56: M | T56: 75 | U56: 75 | X56: 0 | Y56: 0
A57: S | B57: 2 | C57: S | D57: 0 | E57: 1 | F57: 4 | G57: 0 | H57: 0 | I57: 0 | J57: 0 | K57: 0 | M57: Serviço | N57: Serviço | O57: - | P57: SINAPI | Q57: 93009 | R57: ELETRODUTO RÍGIDO ROSCÁVEL, PVC, DN 60 MM (2") - FORNECIMENTO E INSTALAÇÃO. AF_12/2015 | S57: M | T57: 120 | U57: 120 | X57: 0 | Y57: 0
A58: S | B58: 2 | C58: S | D58: 0 | E58: 1 | F58: 4 | G58: 0 | H58: 0 | I58: 0 | J58: 0 | K58: 0 | M58: Serviço | N58: Serviço | O58: - | P58: SINAPI | Q58: 91981 | R58: INTERRUPTOR BIPOLAR (1 MÓDULO), 10A/250V, INCLUINDO SUPORTE E PLACA - FORNECIMENTO E INSTALAÇÃO. AF_09/2017 | S58: UN | T58: 13 | U58: 13 | X58: 0 | Y58: 0
A59: S | B59: 2 | C59: S | D59: 0 | E59: 1 | F59: 4 | G59: 0 | H59: 0 | I59: 0 | J59: 0 | K59: 0 | M59: Serviço | N59: Serviço | O59: - | P59: SINAPI | Q59: 91958 | R59: INTERRUPTOR SIMPLES (2 MÓDULOS), 10A/250V, SEM SUPORTE E SEM PLACA - FORNECIMENTO E INSTALAÇÃO. AF_12/2015 | S59: UN | T59: 1 | U59: 1 | X59: 0 | Y59: 0
A60: S | B60: 2 | C60: S | D60: 0 | E60: 1 | F60: 4 | G60: 0 | H60: 0 | I60: 0 | J60: 0 | K60: 0 | M60: Serviço | N60: Serviço | O60: - | P60: SINAPI | Q60: 97610 | R60: LÂMPADA COMPACTA DE LED 10 W, BASE E27 - FORNECIMENTO E INSTALAÇÃO. AF_11/2017 | S60: UN | T60: 88 | U60: 88 | X60: 0 | Y60: 0
A61: S | B61: 2 | C61: S | D61: 0 | E61: 1 | F61: 4 | G61: 0 | H61: 0 | I61: 0 | J61: 0 | K61: 0 | M61: Serviço | N61: Serviço | O61: - | P61: SINAPI | Q61: 97591 | R61: LUMINÁRIA TIPO PLAFON REDONDO COM VIDRO FOSCO, DE SOBREPOR, COM 2 LÂMPADAS DE 15 W - FORNECIMENTO E INSTALAÇÃO. AF_11/2017 | S61: UN | T61: 44 | U61: 44 | X61: 0 | Y61: 0
A62: S | B62: 2 | C62: S | D62: 0 | E62: 1 | F62: 4 | G62: 0 | H62: 0 | I62: 0 | J62: 0 | K62: 0 | M62: Serviço | N62: Serviço | O62: - | P62: SINAPI | Q62: 91875 | R62: LUVA PARA ELETRODUTO, PVC, ROSCÁVEL, DN 25 MM (3/4"), PARA CIRCUITOS TERMINAIS, INSTALADA EM FORRO - FORNECIMENTO E INSTALAÇÃO. AF_12/2015 | S62: UN | T62: 61 | U62: 61 | X62: 0 | Y62: 0
A63: S | B63: 2 | C63: S | D63: 0 | E63: 1 | F63: 4 | G63: 0 | H63: 0 | I63: 0 | J63: 0 | K63: 0 | M63: Serviço | N63: Serviço | O63: - | P63: SINAPI | Q63: 91876 | R63: LUVA PARA ELETRODUTO, PVC, ROSCÁVEL, DN 32 MM (1"), PARA CIRCUITOS TERMINAIS, INSTALADA EM FORRO - FORNECIMENTO E INSTALAÇÃO. AF_12/2015 | S63: UN | T63: 8 | U63: 8 | X63: 0 | Y63: 0
A64: S | B64: 2 | C64: S | D64: 0 | E64: 1 | F64: 4 | G64: 0 | H64: 0 | I64: 0 | J64: 0 | K64: 0 | M64: Serviço | N64: Serviço | O64: - | P64: SINAPI | Q64: 74131/4 | R64: QUADRO DE DISTRIBUICAO DE ENERGIA DE EMBUTIR, EM CHAPA METALICA, PARA 18 DISJUNTORES TERMOMAGNETICOS MONOPOLARES, COM BARRAMENTO TRIFASICO E NEUTRO, FORNECIMENTO E INSTALACAO | S64: UN | T64: 2 | U64: 2 | X64: 0 | Y64: 0
A65: S | B65: 2 | C65: S | D65: 0 | E65: 1 | F65: 4 | G65: 0 | H65: 0 | I65: 0 | J65: 0 | K65: 0 | M65: Serviço | N65: Serviço | O65: - | P65: SINAPI | Q65: 74131/5 | R65: QUADRO DE DISTRIBUICAO DE ENERGIA DE EMBUTIR, EM CHAPA METALICA, PARA 24 DISJUNTORES TERMOMAGNETICOS MONOPOLARES, COM BARRAMENTO TRIFASICO E NEUTRO, FORNECIMENTO E INSTALACAO | S65: UN | T65: 1 | U65: 1 | X65: 0 | Y65: 0
A66: S | B66: 2 | C66: S | D66: 0 | E66: 1 | F66: 4 | G66: 0 | H66: 0 | I66: 0 | J66: 0 | K66: 0 | M66: Serviço | N66: Serviço | O66: - | P66: SINAPI | Q66: 92000 | R66: TOMADA BAIXA DE EMBUTIR (1 MÓDULO), 2P+T 10 A, INCLUINDO SUPORTE E PLACA - FORNECIMENTO E INSTALAÇÃO. AF_12/2015 | S66: UN | T66: 15 | U66: 15 | X66: 0 | Y66: 0
A67: S | B67: 2 | C67: S | D67: 0 | E67: 1 | F67: 4 | G67: 0 | H67: 0 | I67: 0 | J67: 0 | K67: 0 | M67: Serviço | N67: Serviço | O67: - | P67: SINAPI | Q67: 91996 | R67: TOMADA MÉDIA DE EMBUTIR (1 MÓDULO), 2P+T 10 A, INCLUINDO SUPORTE E PLACA - FORNECIMENTO E INSTALAÇÃO. AF_12/2015 | S67: UN | T67: 5 | U67: 5 | X67: 0 | Y67: 0
A68: S | B68: 2 | C68: S | D68: 0 | E68: 1 | F68: 4 | G68: 0 | H68: 0 | I68: 0 | J68: 0 | K68: 0 | M68: Serviço | N68: Serviço | O68: - | P68: SINAPI | Q68: 91997 | R68: TOMADA MÉDIA DE EMBUTIR (1 MÓDULO), 2P+T 20 A, INCLUINDO SUPORTE E PLACA - FORNECIMENTO E INSTALAÇÃO. AF_12/2015 | S68: UN | T68: 1 | U68: 1 | X68: 0 | Y68: 0
A69: S | B69: 2 | C69: S | D69: 0 | E69: 1 | F69: 4 | G69: 0 | H69: 0 | I69: 0 | J69: 0 | K69: 0 | M69: Serviço | N69: Serviço | O69: - | P69: SINAPI | Q69: 91993 | R69: TOMADA ALTA DE EMBUTIR (1 MÓDULO), 2P+T 20 A, INCLUINDO SUPORTE E PLACA - FORNECIMENTO E INSTALAÇÃO. AF_12/2015 | S69: UN | T69: 2 | U69: 2 | X69: 0 | Y69: 0
A70: 2 | B70: 2 | C70: 2 | D70: 39 | E70: 1 | F70: 5 | G70: 0 | H70: 0 | I70: 0 | J70: 95 | K70: 39 | M70: Nível 2 | N70: Nível 2 | O70: - | R70: INSTALAÇÕES HIDROSSANITÁRIAS | S70: - | U70: 0 | X70: 0 | Y70: 0
A71: 3 | B71: 3 | C71: 3 | D71: 12 | E71: 1 | F71: 5 | G71: 1 | H71: 0 | I71: 0 | J71: 38 | K71: 12 | M71: Nível 3 | N71: Nível 3 | O71: - | R71: PEÇAS E ACESSÓRIOS | S71: - | U71: 0 | X71: 0 | Y71: 0
A72: =CHOOSE(1+LOG(1+2*(ORÇAMENTO.Nivel="Nível 1")+4*(ORÇAMENTO.Nivel="Nível 2")+8*(ORÇAMENTO.Nivel="Nível 3")+16*(ORÇAMENTO.Nivel="Nível 4")+32*(ORÇAMENTO.Nivel="Serviço"),2),0,1,2,3,4,"S") -> S | B72: 3 | C72: S | D72: 0 | E72: =IF($C72=1,OFFSET(E72,-1,0)+1,OFFSET(E72,-1,0)) -> 1 | F72: =IF($C72=1,0,IF($C72=2,OFFSET(F72,-1,0)+1,OFFSET(F72,-1,0))) -> 5 | G72: =IF(AND($C72<=2,$C72<>0),0,IF($C72=3,OFFSET(G72,-1,0)+1,OFFSET(G72,-1,0))) -> 1 | H72: =IF(AND($C72<=3,$C72<>0),0,IF($C72=4,OFFSET(H72,-1,0)+1,OFFSET(H72,-1,0))) -> 0 | I72: =IF(AND($C72<=4,$C72<>0),0,IF(AND($C72="S",$Y72>0),OFFSET(I72,-1,0)+1,OFFSET(I72,-1,0))) -> 0 | J72: 0 | K72: 0 | M72: Serviço | N72: Serviço | O72: - | P72: SINAPI | Q72: 94500 | R72: REGISTRO DE GAVETA BRUTO, LATÃO, ROSCÁVEL, 3, INSTALADO EM RESERVAÇÃO DE ÁGUA DE EDIFICAÇÃO QUE POSSUA RESERVATÓRIO DE FIBRA/FIBROCIMENTO  FORNECIMENTO E INSTALAÇÃO. AF_06/2016 | S72: UN | T72: 1 | U72: 1 | X72: 0 | Y72: 0
A73: S | B73: 3 | C73: S | D73: 0 | E73: 1 | F73: 5 | G73: 1 | H73: 0 | I73: 0 | J73: 0 | K73: 0 | M73: Serviço | N73: Serviço | O73: - | P73: SINAPI | Q73: 94495 | R73: REGISTRO DE GAVETA BRUTO, LATÃO, ROSCÁVEL, 1, INSTALADO EM RESERVAÇÃO DE ÁGUA DE EDIFICAÇÃO QUE POSSUA RESERVATÓRIO DE FIBRA/FIBROCIMENTO  FORNECIMENTO E INSTALAÇÃO. AF_06/2016 | S73: UN | T73: 1 | U73: 1 | X73: 0 | Y73: 0 | Z73: Referência: AGETOP - 80903
A74: S | B74: 3 | C74: S | D74: 0 | E74: 1 | F74: 5 | G74: 1 | H74: 0 | I74: 0 | J74: 0 | K74: 0 | M74: Serviço | N74: Serviço | O74: - | P74: SINAPI | Q74: 89616 | R74: ADAPTADOR CURTO COM BOLSA E ROSCA PARA REGISTRO, PVC, SOLDÁVEL, DN 85MM X 3, INSTALADO EM PRUMADA DE ÁGUA - FORNECIMENTO E INSTALAÇÃO. AF_12/2014 | S74: UN | T74: 2 | U74: 2 | X74: 0 | Y74: 0 | Z74: Referência: AGETOP - 81072
A75: S | B75: 3 | C75: S | D75: 0 | E75: 1 | F75: 5 | G75: 1 | H75: 0 | I75: 0 | J75: 0 | K75: 0 | M75: Serviço | N75: Serviço | O75: - | P75: SINAPI | Q75: 89553 | R75: ADAPTADOR CURTO COM BOLSA E ROSCA PARA REGISTRO, PVC, SOLDÁVEL, DN 32MM X 1, INSTALADO EM PRUMADA DE ÁGUA - FORNECIMENTO E INSTALAÇÃO. AF_12/2014 | S75: UN | T75: 2 | U75: 2 | X75: 0 | Y75: 0 | Z75: Referência: AGETOP - 81067
A76: S | B76: 3 | C76: S | D76: 0 | E76: 1 | F76: 5 | G76: 1 | H76: 0 | I76: 0 | J76: 0 | K76: 0 | M76: Serviço | N76: Serviço | O76: - | P76: SINAPI | Q76: 94714 | R76: ADAPTADOR COM FLANGES LIVRES, PVC, SOLDÁVEL, DN 85 MM X 3 , INSTALADO EM RESERVAÇÃO DE ÁGUA DE EDIFICAÇÃO QUE POSSUA RESERVATÓRIO DE FIBRA/FIBROCIMENTO FORNECIMENTO E INSTALAÇÃO. AF_06/2016 | S76: UN | T76: 1 | U76: 1 | X76: 0 | Y76: 0 | Z76: Referência: COMPOSIÇÃO - COMP 028_SEE
A77: S | B77: 3 | C77: S | D77: 0 | E77: 1 | F77: 5 | G77: 1 | H77: 0 | I77: 0 | J77: 0 | K77: 0 | M77: Serviço | N77: Serviço | O77: - | P77: SINAPI | Q77: 94785 | R77: ADAPTADOR COM FLANGES LIVRES, PVC, SOLDÁVEL LONGO, DN 32 MM X 1 , INSTALADO EM RESERVAÇÃO DE ÁGUA DE EDIFICAÇÃO QUE POSSUA RESERVATÓRIO DE FIBRA/FIBROCIMENTO FORNECIMENTO E INSTALAÇÃO. AF_06/2016 | S77: UN | T77: 1 | U77: 1 | X77: 0 | Y77: 0 | Z77: Referência: AGETOP - 81042
A78: S | B78: 3 | C78: S | D78: 0 | E78: 1 | F78: 5 | G78: 1 | H78: 0 | I78: 0 | J78: 0 | K78: 0 | M78: Serviço | N78: Serviço | O78: - | P78: AGETOP | Q78: 80840 | R78: TAMPA T-5 ARTICULADA 20X20 | S78: Un | T78: 1 | U78: 1 | X78: 0 | Y78: 0
A79: S | B79: 3 | C79: S | D79: 0 | E79: 1 | F79: 5 | G79: 1 | H79: 0 | I79: 0 | J79: 0 | K79: 0 | M79: Serviço | N79: Serviço | O79: - | P79: AGETOP | Q79: 80845 | R79: CAIXA DE ALVENARIA 20x20x25 CM (REVESTIMENTO IMPERMEABILIZADO), FUNDO DE BRITA SEM TAMPA - PARA REGISTRO/TORNEIRA JARDIM | S79: Un | T79: 1 | U79: 1 | X79: 0 | Y79: 0
A80: S | B80: 3 | C80: S | D80: 0 | E80: 1 | F80: 5 | G80: 1 | H80: 0 | I80: 0 | J80: 0 | K80: 0 | M80: Serviço | N80: Serviço | O80: - | P80: AGETOP | Q80: 81825 | R80: CAIXA DE PASSAGEM 60 X 60 CM SEM TAMPA | S80: Un | T80: 4 | U80: 4 | X80: 0 | Y80: 0
A81: S | B81: 3 | C81: S | D81: 0 | E81: 1 | F81: 5 | G81: 1 | H81: 0 | I81: 0 | J81: 0 | K81: 0 | M81: Serviço | N81: Serviço | O81: - | P81: SINAPI | Q81: 6171 | R81: TAMPA DE CONCRETO ARMADO 60X60X5CM PARA CAIXA | S81: UN | T81: 4 | U81: 4 | X81: 0 | Y81: 0
A82: S | B82: 3 | C82: S | D82: 0 | E82: 1 | F82: 5 | G82: 1 | H82: 0 | I82: 0 | J82: 0 | K82: 0 | M82: Serviço | N82: Serviço | O82: - | P82: AGETOP | Q82: 81880 | R82: RES.METALICO TAÇA AÇO PATINÁVEL-V=5M3-COL.SEC.H=6M+FUNDAÇÃO+LOGOTIPO | S82: Un | T82: 1 | U82: 1 | X82: 0 | Y82: 0
A83: 3 | B83: 3 | C83: 3 | D83: 14 | E83: 1 | F83: 5 | G83: 2 | H83: 0 | I83: 0 | J83: =IF(OR($C83="S",$C83=0),0,MATCH(0,OFFSET($D83,1,$C83,ROW($C$459)-ROW($C83)),0)) -> 26 | K83: =IF(OR($C83="S",$C83=0),0,MATCH(OFFSET($D83,0,$C83)+1,OFFSET($D83,1,$C83,ROW($C$459)-ROW($C83)),0)) -> 14 | M83: Nível 3 | N83: Nível 3 | O83: - | R83: ÁGUA FRIA | S83: - | U83: 0 | X83: 0 | Y83: 0
A84: S | B84: 3 | C84: S | D84: 0 | E84: 1 | F84: 5 | G84: 2 | H84: 0 | I84: 0 | J84: 0 | K84: 0 | M84: Serviço | N84: Serviço | O84: - | P84: SINAPI | Q84: 89447 | R84: TUBO, PVC, SOLDÁVEL, DN 32MM, INSTALADO EM PRUMADA DE ÁGUA - FORNECIMENTO E INSTALAÇÃO. AF_12/2014 | S84: M | T84: 90 | U84: 90 | X84: 0 | Y84: 0
A85: S | B85: 3 | C85: S | D85: 0 | E85: 1 | F85: 5 | G85: 2 | H85: 0 | I85: 0 | J85: 0 | K85: 0 | M85: Serviço | N85: Serviço | O85: - | P85: SINAPI | Q85: 89451 | R85: TUBO, PVC, SOLDÁVEL, DN 75MM, INSTALADO EM PRUMADA DE ÁGUA - FORNECIMENTO E INSTALAÇÃO. AF_12/2014 | S85: M | T85: 6 | U85: 6 | X85: 0 | Y85: 0
A86: S | B86: 3 | C86: S | D86: 0 | E86: 1 | F86: 5 | G86: 2 | H86: 0 | I86: 0 | J86: 0 | K86: 0 | M86: Serviço | N86: Serviço | O86: - | P86: SINAPI | Q86: 89452 | R86: TUBO, PVC, SOLDÁVEL, DN 85MM, INSTALADO EM PRUMADA DE ÁGUA - FORNECIMENTO E INSTALAÇÃO. AF_12/2014 | S86: M | T86: 18 | U86: 18 | X86: 0 | Y86: 0
A87: S | B87: 3 | C87: S | D87: 0 | E87: 1 | F87: 5 | G87: 2 | H87: 0 | I87: 0 | J87: 0 | K87: 0 | M87: Serviço | N87: Serviço | O87: - | P87: SINAPI | Q87: 89541 | R87: LUVA, PVC, SOLDÁVEL, DN 32MM, INSTALADO EM PRUMADA DE ÁGUA - FORNECIMENTO E INSTALAÇÃO. AF_12/2014 | S87: UN | T87: 13 | U87: 13 | X87: 0 | Y87: 0
A88: S | B88: 3 | C88: S | D88: 0 | E88: 1 | F88: 5 | G88: 2 | H88: 0 | I88: 0 | J88: 0 | K88: 0 | M88: Serviço | N88: Serviço | O88: - | P88: SINAPI | Q88: 89611 | R88: LUVA, PVC, SOLDÁVEL, DN 75MM, INSTALADO EM PRUMADA DE ÁGUA - FORNECIMENTO E INSTALAÇÃO. AF_12/2014 | S88: UN | T88: 1 | U88: 1 | X88: 0 | Y88: 0
A89: S | B89: 3 | C89: S | D89: 0 | E89: 1 | F89: 5 | G89: 2 | H89: 0 | I89: 0 | J89: 0 | K89: 0 | M89: Serviço | N89: Serviço | O89: - | P89: SINAPI | Q89: 89614 | R89: LUVA, PVC, SOLDÁVEL, DN 85MM, INSTALADO EM PRUMADA DE ÁGUA - FORNECIMENTO E INSTALAÇÃO. AF_12/2014 | S89: UN | T89: 2 | U89: 2 | X89: 0 | Y89: 0 | Z89: Referência: AGETOP - 81108
A90: S | B90: =IF(OR(C90="s",C90=0),OFFSET(B90,-1,0),C90) -> 3 | C90: =IF(OFFSET(C90,-1,0)="L",1,IF(OFFSET(C90,-1,0)=1,2,IF(OR(A90="s",A90=0),"S",IF(AND(OFFSET(C90,-1,0)=2,A90=4),3,IF(AND(OR(OFFSET(C90,-1,0)="s",OFFSET(C90,-1,0)=0),A90<>"s",A90>OFFSET(B90,-1,0)),OFFSET(B90,-1,0),A90))))) -> S | D90: =IF(OR(C90="S",C90=0),0,IF(ISERROR(K90),J90,SMALL(J90:K90,1))) -> 0 | E90: 1 | F90: 5 | G90: 2 | H90: 0 | I90: 0 | J90: 0 | K90: 0 | M90: Serviço | N90: Serviço | O90: - | P90: SINAPI | Q90: 89492 | R90: JOELHO 90 GRAUS, PVC, SOLDÁVEL, DN 32MM, INSTALADO EM PRUMADA DE ÁGUA - FORNECIMENTO E INSTALAÇÃO. AF_12/2014 | S90: UN | T90: 7 | U90: 7 | X90: 0 | Y90: 0
A91: S | B91: 3 | C91: S | D91: 0 | E91: 1 | F91: 5 | G91: 2 | H91: 0 | I91: 0 | J91: 0 | K91: 0 | M91: Serviço | N91: Serviço | O91: - | P91: SINAPI | Q91: 89521 | R91: JOELHO 90 GRAUS, PVC, SOLDÁVEL, DN 85MM, INSTALADO EM PRUMADA DE ÁGUA - FORNECIMENTO E INSTALAÇÃO. AF_12/2014 | S91: UN | T91: 3 | U91: 3 | X91: 0 | Y91: 0 | Z91: Referência: AGETOP - 81327
A92: S | B92: =IF(OR(C92="s",C92=0),OFFSET(B92,-1,0),C92) -> 3 | C92: =IF(OFFSET(C92,-1,0)="L",1,IF(OFFSET(C92,-1,0)=1,2,IF(OR(A92="s",A92=0),"S",IF(AND(OFFSET(C92,-1,0)=2,A92=4),3,IF(AND(OR(OFFSET(C92,-1,0)="s",OFFSET(C92,-1,0)=0),A92<>"s",A92>OFFSET(B92,-1,0)),OFFSET(B92,-1,0),A92))))) -> S | D92: =IF(OR(C92="S",C92=0),0,IF(ISERROR(K92),J92,SMALL(J92:K92,1))) -> 0 | E92: 1 | F92: 5 | G92: 2 | H92: 0 | I92: 0 | J92: 0 | K92: 0 | M92: Serviço | N92: Serviço | O92: - | P92: AGETOP | Q92: 81167 | R92: BUCHA DE REDUCAO SOLDAVEL CURTA 85 X 75 mm | S92: Un | T92: 1 | U92: 1 | X92: 0 | Y92: 0
A93: S | B93: 3 | C93: S | D93: 0 | E93: 1 | F93: 5 | G93: 2 | H93: 0 | I93: 0 | J93: 0 | K93: 0 | M93: Serviço | N93: Serviço | O93: - | P93: AGETOP | Q93: 81185 | R93: BUCHA DE REDUÇÃO SOLDÁVEL LONGA 75 X 50 MM | S93: un | T93: 1 | U93: 1 | X93: 0 | Y93: 0
A94: S | B94: 3 | C94: S | D94: 0 | E94: =IF($C94=1,OFFSET(E94,-1,0)+1,OFFSET(E94,-1,0)) -> 1 | F94: =IF($C94=1,0,IF($C94=2,OFFSET(F94,-1,0)+1,OFFSET(F94,-1,0))) -> 5 | G94: =IF(AND($C94<=2,$C94<>0),0,IF($C94=3,OFFSET(G94,-1,0)+1,OFFSET(G94,-1,0))) -> 2 | H94: =IF(AND($C94<=3,$C94<>0),0,IF($C94=4,OFFSET(H94,-1,0)+1,OFFSET(H94,-1,0))) -> 0 | I94: 0 | J94: 0 | K94: 0 | M94: Serviço | N94: Serviço | O94: - | P94: AGETOP | Q94: 81166 | R94: BUCHA DE REDUCAO SOLDAVEL CURTA 75 X 60 mm | S94: Un | T94: 1 | U94: 1 | X94: 0 | Y94: 0
A95: S | B95: 3 | C95: S | D95: 0 | E95: =IF($C95=1,OFFSET(E95,-1,0)+1,OFFSET(E95,-1,0)) -> 1 | F95: =IF($C95=1,0,IF($C95=2,OFFSET(F95,-1,0)+1,OFFSET(F95,-1,0))) -> 5 | G95: =IF(AND($C95<=2,$C95<>0),0,IF($C95=3,OFFSET(G95,-1,0)+1,OFFSET(G95,-1,0))) -> 2 | H95: =IF(AND($C95<=3,$C95<>0),0,IF($C95=4,OFFSET(H95,-1,0)+1,OFFSET(H95,-1,0))) -> 0 | I95: 0 | J95: 0 | K95: 0 | M95: Serviço | N95: Serviço | O95: - | P95: AGETOP | Q95: 81181 | R95: BUCHA DE REDUCAO SOLDAVEL LONGA 60 X 25 mm | S95: Un | T95: 2 | U95: 2 | X95: 0 | Y95: 0
A96: S | B96: 3 | C96: S | D96: 0 | E96: 1 | F96: 5 | G96: 2 | H96: 0 | I96: 0 | J96: 0 | K96: 0 | M96: Serviço | N96: Serviço | O96: - | P96: SINAPI | Q96: 89628 | R96: TE, PVC, SOLDÁVEL, DN 60MM, INSTALADO EM PRUMADA DE ÁGUA - FORNECIMENTO E INSTALAÇÃO. AF_12/2014 | S96: UN | T96: 2 | U96: 2 | X96: 0 | Y96: 0 | Z96: Referência: AGETOP - 81406
A97: 3 | B97: 3 | C97: 3 | D97: 5 | E97: 1 | F97: 5 | G97: 3 | H97: 0 | I97: 0 | J97: 12 | K97: 5 | M97: Nível 3 | N97: Nível 3 | O97: - | R97: ESGOTO | S97: - | U97: 0 | X97: 0 | Y97: 0
A98: S | B98: 3 | C98: S | D98: 0 | E98: 1 | F98: 5 | G98: 3 | H98: 0 | I98: 0 | J98: 0 | K98: 0 | M98: Serviço | N98: Serviço | O98: - | P98: SINAPI | Q98: 89810 | R98: JOELHO 45 GRAUS, PVC, SERIE NORMAL, ESGOTO PREDIAL, DN 100 MM, JUNTA ELÁSTICA, FORNECIDO E INSTALADO EM PRUMADA DE ESGOTO SANITÁRIO OU VENTILAÇÃO. AF_12/2014 | S98: UN | T98: 2 | U98: 2 | X98: 0 | Y98: 0
A99: S | B99: 3 | C99: S | D99: 0 | E99: 1 | F99: 5 | G99: 3 | H99: 0 | I99: 0 | J99: 0 | K99: 0 | M99: Serviço | N99: Serviço | O99: - | P99: SINAPI | Q99: 89834 | R99: JUNÇÃO SIMPLES, PVC, SERIE NORMAL, ESGOTO PREDIAL, DN 100 X 100 MM, JUNTA ELÁSTICA, FORNECIDO E INSTALADO EM PRUMADA DE ESGOTO SANITÁRIO OU VENTILAÇÃO. AF_12/2014 | S99: UN | T99: 1 | U99: 1 | X99: 0 | Y99: 0
A100: S | B100: 3 | C100: S | D100: 0 | E100: 1 | F100: 5 | G100: 3 | H100: 0 | I100: 0 | J100: 0 | K100: 0 | M100: Serviço | N100: Serviço | O100: - | P100: SINAPI | Q100: 89821 | R100: LUVA SIMPLES, PVC, SERIE NORMAL, ESGOTO PREDIAL, DN 100 MM, JUNTA ELÁSTICA, FORNECIDO E INSTALADO EM PRUMADA DE ESGOTO SANITÁRIO OU VENTILAÇÃO. AF_12/2014 | S100: UN | T100: 11 | U100: 11 | X100: 0 | Y100: 0
A101: S | B101: 3 | C101: S | D101: 0 | E101: 1 | F101: 5 | G101: 3 | H101: 0 | I101: 0 | J101: 0 | K101: 0 | M101: Serviço | N101: Serviço | O101: - | P101: SINAPI | Q101: 89800 | R101: TUBO PVC, SERIE NORMAL, ESGOTO PREDIAL, DN 100 MM, FORNECIDO E INSTALADO EM PRUMADA DE ESGOTO SANITÁRIO OU VENTILAÇÃO. AF_12/2014 | S101: M | T101: 78 | U101: 78 | X101: 0 | Y101: 0
A102: 3 | B102: 3 | C102: 3 | D102: 7 | E102: 1 | F102: 5 | G102: 4 | H102: 0 | I102: 0 | J102: 7 | K102: 122 | M102: Nível 3 | N102: Nível 3 | O102: - | R102: INCÊNDIO | S102: - | U102: 0 | X102: 0 | Y102: 0
A103: S | B103: 3 | C103: S | D103: 0 | E103: 1 | F103: 5 | G103: 4 | H103: 0 | I103: 0 | J103: 0 | K103: 0 | M103: Serviço | N103: Serviço | O103: - | P103: SINAPI | Q103: 83635 | R103: EXTINTOR INCENDIO TP PO QUIMICO 6KG - FORNECIMENTO E INSTALACAO | S103: UN | T103: 7 | U103: 7 | X103: 0 | Y103: 0 | Z103: Referência: AGETOP - 85003
A104: S | B104: 3 | C104: S | D104: 0 | E104: 1 | F104: 5 | G104: 4 | H104: 0 | I104: 0 | J104: 0 | K104: 0 | M104: Serviço | N104: Serviço | O104: - | P104: SINAPI | Q104: 73775/2 | R104: EXTINTOR INCENDIO AGUA-PRESSURIZADA 10L INCL SUPORTE PAREDE CARGA COMPLETA FORNECIMENTO E COLOCACAO | S104: UN | T104: 2 | U104: 2 | X104: 0 | Y104: 0 | Z104: Referência: AGETOP - 85005
A105: S | B105: 3 | C105: S | D105: 0 | E105: 1 | F105: 5 | G105: 4 | H105: 0 | I105: 0 | J105: 0 | K105: 0 | M105: Serviço | N105: Serviço | O105: - | P105: SINAPI | Q105: 97599 | R105: LUMINÁRIA DE EMERGÊNCIA - FORNECIMENTO E INSTALAÇÃO. AF_11/2017 | S105: UN | T105: 11 | U105: 11 | X105: 0 | Y105: 0
A106: S | B106: 3 | C106: S | D106: 0 | E106: 1 | F106: 5 | G106: 4 | H106: 0 | I106: 0 | J106: 0 | K106: 0 | M106: Serviço | N106: Serviço | O106: - | P106: COMPOSIÇÃO | Q106: COMP 024_SEE | R106: SINALIZADOR FOTOLUMINESCENTE PARA EXTINTOR | S106: UN | T106: 9 | U106: 9 | X106: 0 | Y106: 0
A107: S | B107: 3 | C107: S | D107: 0 | E107: 1 | F107: 5 | G107: 4 | H107: 0 | I107: 0 | J107: 0 | K107: 0 | M107: Serviço | N107: Serviço | O107: - | P107: COMPOSIÇÃO | Q107: COMP 025_SEE | R107: SINALIZADOR FOTOLUMINESCENTE DE EMERGÊNCIA | S107: UN | T107: 14 | U107: 14 | X107: 0 | Y107: 0
A108: S | B108: 3 | C108: S | D108: 0 | E108: 1 | F108: 5 | G108: 4 | H108: 0 | I108: 0 | J108: 0 | K108: 0 | M108: Serviço | N108: Serviço | O108: - | P108: COMPOSIÇÃO | Q108: COMP 084_SEE | R108: GUARDA-CORPO COM CORRIMÃO - SEDUC | S108: M | T108: 56 | U108: 56 | X108: 0 | Y108: 0
A109: 2 | B109: 2 | C109: 2 | D109: 27 | E109: 1 | F109: 6 | G109: 0 | H109: 0 | I109: 0 | J109: 56 | K109: 27 | M109: Nível 2 | N109: Nível 2 | O109: - | R109: INSTALAÇÕES ESPECIAIS | S109: - | U109: 0 | X109: 0 | Y109: 0
A110: S | B110: 2 | C110: S | D110: 0 | E110: =IF($C110=1,OFFSET(E110,-1,0)+1,OFFSET(E110,-1,0)) -> 1 | F110: =IF($C110=1,0,IF($C110=2,OFFSET(F110,-1,0)+1,OFFSET(F110,-1,0))) -> 6 | G110: =IF(AND($C110<=2,$C110<>0),0,IF($C110=3,OFFSET(G110,-1,0)+1,OFFSET(G110,-1,0))) -> 0 | H110: =IF(AND($C110<=3,$C110<>0),0,IF($C110=4,OFFSET(H110,-1,0)+1,OFFSET(H110,-1,0))) -> 0 | I110: 0 | J110: 0 | K110: 0 | M110: Serviço | N110: Serviço | O110: - | P110: AGETOP | Q110: 91007 | R110: CENTRAL DE GÁS PADRÃO AGETOP SEM INSTALAÇÕES (1+1 CILINDRO 45 KG) | S110: Un | T110: 1 | U110: 1 | X110: 0 | Y110: 0
A111: S | B111: 2 | C111: S | D111: 0 | E111: =IF($C111=1,OFFSET(E111,-1,0)+1,OFFSET(E111,-1,0)) -> 1 | F111: =IF($C111=1,0,IF($C111=2,OFFSET(F111,-1,0)+1,OFFSET(F111,-1,0))) -> 6 | G111: =IF(AND($C111<=2,$C111<>0),0,IF($C111=3,OFFSET(G111,-1,0)+1,OFFSET(G111,-1,0))) -> 0 | H111: =IF(AND($C111<=3,$C111<>0),0,IF($C111=4,OFFSET(H111,-1,0)+1,OFFSET(H111,-1,0))) -> 0 | I111: 0 | J111: 0 | K111: 0 | M111: Serviço | N111: Serviço | O111: - | P111: AGETOP | Q111: 91023 | R111: UNIÃO S/BRONZE PRETA 3/4" NPT 300 LBS | S111: Un | T111: 3 | U111: 3 | X111: 0 | Y111: 0
A112: =CHOOSE(1+LOG(1+2*(ORÇAMENTO.Nivel="Nível 1")+4*(ORÇAMENTO.Nivel="Nível 2")+8*(ORÇAMENTO.Nivel="Nível 3")+16*(ORÇAMENTO.Nivel="Nível 4")+32*(ORÇAMENTO.Nivel="Serviço"),2),0,1,2,3,4,"S") -> S | B112: =IF(OR(C112="s",C112=0),OFFSET(B112,-1,0),C112) -> 2 | C112: =IF(OFFSET(C112,-1,0)="L",1,IF(OFFSET(C112,-1,0)=1,2,IF(OR(A112="s",A112=0),"S",IF(AND(OFFSET(C112,-1,0)=2,A112=4),3,IF(AND(OR(OFFSET(C112,-1,0)="s",OFFSET(C112,-1,0)=0),A112<>"s",A112>OFFSET(B112,-1,0)),OFFSET(B112,-1,0),A112))))) -> S | D112: =IF(OR(C112="S",C112=0),0,IF(ISERROR(K112),J112,SMALL(J112:K112,1))) -> 0 | E112: 1 | F112: 6 | G112: 0 | H112: 0 | I112: =IF(AND($C112<=4,$C112<>0),0,IF(AND($C112="S",$Y112>0),OFFSET(I112,-1,0)+1,OFFSET(I112,-1,0))) -> 0 | J112: 0 | K112: 0 | M112: Serviço | N112: Serviço | O112: - | P112: COMPOSIÇÃO | Q112: COMP 382_SEE | R112: TE DE REDUCAO DE FERRO GALVANIZADO, COM ROSCA BSP, DE 3/4" X 1/2" | S112: UN | T112: 1 | U112: 1 | X112: 0 | Y112: 0
A113: S | B113: 2 | C113: S | D113: 0 | E113: 1 | F113: 6 | G113: 0 | H113: 0 | I113: 0 | J113: 0 | K113: 0 | M113: Serviço | N113: Serviço | O113: - | P113: COMPOSIÇÃO | Q113: COMP 383_SEE | R113: BUCHA DE REDUCAO DE FERRO GALVANIZADO, COM ROSCA BSP, DE 1/2" X 1/4" | S113: UN | T113: 3 | U113: 3 | X113: 0 | Y113: 0
A114: S | B114: 2 | C114: S | D114: 0 | E114: 1 | F114: 6 | G114: 0 | H114: 0 | I114: 0 | J114: 0 | K114: 0 | M114: Serviço | N114: Serviço | O114: - | P114: AGETOP | Q114: 91021 | R114: LUVA GALVANIZADO DE REDUÇÃO 3/4" X 1/2" (GÁS) | S114: Un | T114: 2 | U114: 2 | X114: 0 | Y114: 0
A115: S | B115: 2 | C115: S | D115: 0 | E115: 1 | F115: 6 | G115: 0 | H115: 0 | I115: 0 | J115: 0 | K115: 0 | M115: Serviço | N115: Serviço | O115: - | P115: SINAPI | Q115: 92692 | R115: NIPLE, EM FERRO GALVANIZADO, CONEXÃO ROSQUEADA, DN 15 (1/2"), INSTALADO EM RAMAIS E SUB-RAMAIS DE GÁS - FORNECIMENTO E INSTALAÇÃO. AF_12/2015 | S115: UN | T115: 6 | U115: 6 | X115: 0 | Y115: 0
A116: S | B116: 2 | C116: S | D116: 0 | E116: 1 | F116: 6 | G116: 0 | H116: 0 | I116: 0 | J116: 0 | K116: 0 | M116: Serviço | N116: Serviço | O116: - | P116: AGETOP | Q116: 91031 | R116: NIPLE DUPLO 300 PSI 3/4" | S116: Un | T116: 6 | U116: 6 | X116: 0 | Y116: 0
A117: S | B117: 2 | C117: S | D117: 0 | E117: 1 | F117: 6 | G117: 0 | H117: 0 | I117: 0 | J117: 0 | K117: 0 | M117: Serviço | N117: Serviço | O117: - | P117: COMPOSIÇÃO | Q117: COMP 212_SEE | R117: NIPLE DE REDUÇÃO 1/2" X 1/4" BSP | S117: UN | T117: 4 | U117: 4 | X117: 0 | Y117: 0
A118: S | B118: 2 | C118: S | D118: 0 | E118: 1 | F118: 6 | G118: 0 | H118: 0 | I118: 0 | J118: 0 | K118: 0 | M118: Serviço | N118: Serviço | O118: - | P118: COMPOSIÇÃO | Q118: COMP 213_SEE | R118: NIPLE DE REDUÇÃO 3/4" X 1/2" BSP | S118: UN | T118: 4 | U118: 4 | X118: 0 | Y118: 0
A119: S | B119: 2 | C119: S | D119: 0 | E119: 1 | F119: 6 | G119: 0 | H119: 0 | I119: 0 | J119: 0 | K119: 0 | M119: Serviço | N119: Serviço | O119: - | P119: SINAPI | Q119: 92688 | R119: TUBO DE AÇO GALVANIZADO COM COSTURA, CLASSE MÉDIA, CONEXÃO ROSQUEADA, DN 20 (3/4"), INSTALADO EM RAMAIS E SUB-RAMAIS DE GÁS - FORNECIMENTO E INSTALAÇÃO. AF_12/2015 | S119: M | T119: 12 | U119: 12 | X119: 0 | Y119: 0
A120: S | B120: 2 | C120: S | D120: 0 | E120: 1 | F120: 6 | G120: 0 | H120: 0 | I120: 0 | J120: 0 | K120: 0 | M120: Serviço | N120: Serviço | O120: - | P120: SINAPI | Q120: 92701 | R120: JOELHO 90 GRAUS, EM FERRO GALVANIZADO, CONEXÃO ROSQUEADA, DN 20 (3/4"), INSTALADO EM RAMAIS E SUB-RAMAIS DE GÁS - FORNECIMENTO E INSTALAÇÃO. AF_12/2015 | S120: UN | T120: 6 | U120: 6 | X120: 0 | Y120: 0
A121: S | B121: 2 | C121: S | D121: 0 | E121: 1 | F121: 6 | G121: 0 | H121: 0 | I121: 0 | J121: 0 | K121: 0 | M121: Serviço | N121: Serviço | O121: - | P121: COMPOSIÇÃO | Q121: COMP 237_SEE | R121: FITA ANTICORROSIVA | S121: M | T121: 5 | U121: 5 | X121: 0 | Y121: 0
A122: S | B122: 2 | C122: S | D122: 0 | E122: 1 | F122: 6 | G122: 0 | H122: 0 | I122: 0 | J122: 0 | K122: 0 | M122: Serviço | N122: Serviço | O122: - | P122: AGETOP | Q122: 91025 | R122: VÁLVULA ESFERICA LATÃO 3/4" | S122: Un | T122: 3 | U122: 3 | X122: 0 | Y122: 0
A123: S | B123: 2 | C123: S | D123: 0 | E123: 1 | F123: 6 | G123: 0 | H123: 0 | I123: 0 | J123: 0 | K123: 0 | M123: Serviço | N123: Serviço | O123: - | P123: COMPOSIÇÃO | Q123: COMP 542_SEE | R123: VÁLVULA UGV 3/4" (S) LATÃO | S123: UN | T123: 1 | U123: 1 | X123: 0 | Y123: 0
A124: S | B124: 2 | C124: S | D124: 0 | E124: 1 | F124: 6 | G124: 0 | H124: 0 | I124: 0 | J124: 0 | K124: 0 | M124: Serviço | N124: Serviço | O124: - | P124: COMPOSIÇÃO | Q124: COMP 543_SEE | R124: VÁLVULA UGV 1/2" (S) LATÃO | S124: UN | T124: 1 | U124: 1 | X124: 0 | Y124: 0
A125: S | B125: 2 | C125: S | D125: 0 | E125: 1 | F125: 6 | G125: 0 | H125: 0 | I125: 0 | J125: 0 | K125: 0 | M125: Serviço | N125: Serviço | O125: - | P125: AGETOP | Q125: 91029 | R125: VALVULA DE RETENÇÃO LATÃO 1/2" X 7/16" NPT | S125: Un | T125: 1 | U125: 1 | X125: 0 | Y125: 0
A126: S | B126: 2 | C126: S | D126: 0 | E126: 1 | F126: 6 | G126: 0 | H126: 0 | I126: 0 | J126: 0 | K126: 0 | M126: Serviço | N126: Serviço | O126: - | P126: COMPOSIÇÃO | Q126: COMP 211_SEE | R126: REGULADOR DE 2º ESTÁGIO 5KG/H | S126: UN | T126: 1 | U126: 1 | X126: 0 | Y126: 0
A127: S | B127: 2 | C127: S | D127: 0 | E127: 1 | F127: 6 | G127: 0 | H127: 0 | I127: 0 | J127: 0 | K127: 0 | M127: Serviço | N127: Serviço | O127: - | P127: COMPOSIÇÃO | Q127: COMP 210_SEE | R127: REGULADOR DE 1º ESTÁGIO 60KG/H MODELO AP-40 COM MANÔMETRO | S127: UN | T127: 1 | U127: 1 | X127: 0 | Y127: 0
A128: S | B128: 2 | C128: S | D128: 0 | E128: 1 | F128: 6 | G128: 0 | H128: 0 | I128: 0 | J128: 0 | K128: 0 | M128: Serviço | N128: Serviço | O128: - | P128: AGETOP | Q128: 85003 | R128: EXTINTOR PO QUIMICO SECO (6 KG) - CAPACIDADE EXTINTORA 20 BC | S128: Un | T128: 1 | U128: 1 | X128: 0 | Y128: 0
A129: =CHOOSE(1+LOG(1+2*(ORÇAMENTO.Nivel="Nível 1")+4*(ORÇAMENTO.Nivel="Nível 2")+8*(ORÇAMENTO.Nivel="Nível 3")+16*(ORÇAMENTO.Nivel="Nível 4")+32*(ORÇAMENTO.Nivel="Serviço"),2),0,1,2,3,4,"S") -> S | B129: =IF(OR(C129="s",C129=0),OFFSET(B129,-1,0),C129) -> 2 | C129: =IF(OFFSET(C129,-1,0)="L",1,IF(OFFSET(C129,-1,0)=1,2,IF(OR(A129="s",A129=0),"S",IF(AND(OFFSET(C129,-1,0)=2,A129=4),3,IF(AND(OR(OFFSET(C129,-1,0)="s",OFFSET(C129,-1,0)=0),A129<>"s",A129>OFFSET(B129,-1,0)),OFFSET(B129,-1,0),A129))))) -> S | D129: =IF(OR(C129="S",C129=0),0,IF(ISERROR(K129),J129,SMALL(J129:K129,1))) -> 0 | E129: 1 | F129: 6 | G129: 0 | H129: 0 | I129: =IF(AND($C129<=4,$C129<>0),0,IF(AND($C129="S",$Y129>0),OFFSET(I129,-1,0)+1,OFFSET(I129,-1,0))) -> 0 | J129: 0 | K129: 0 | M129: Serviço | N129: Serviço | O129: - | P129: COMPOSIÇÃO | Q129: COMP 235_SEE | R129: PLACA DE SINALIZAÇÃO EM PVC COD 01 - (300X300) PROIBIDO FUMAR | S129: UN | T129: 2 | U129: 2 | X129: 0 | Y129: 0
A130: S | B130: 2 | C130: S | D130: 0 | E130: 1 | F130: 6 | G130: 0 | H130: 0 | I130: 0 | J130: 0 | K130: 0 | M130: Serviço | N130: Serviço | O130: - | P130: COMPOSIÇÃO | Q130: COMP 236_SEE | R130: PLACA DE SINALIZAÇÃO EM PVC COD 06 - (300X300) PERIGO INFLAMÁVEL | S130: UN | T130: 2 | U130: 2 | X130: 0 | Y130: 0
A131: S | B131: 2 | C131: S | D131: 0 | E131: 1 | F131: 6 | G131: 0 | H131: 0 | I131: 0 | J131: 0 | K131: 0 | M131: Serviço | N131: Serviço | O131: - | P131: AGETOP | Q131: 91043 | R131: BRAÇADEIRA METALICA TIPO "D" DIAM. 3/4" | S131: Un | T131: 6 | U131: 6 | X131: 0 | Y131: 0
A132: S | B132: 2 | C132: S | D132: 0 | E132: 1 | F132: 6 | G132: 0 | H132: 0 | I132: 0 | J132: 0 | K132: 0 | M132: Serviço | N132: Serviço | O132: - | P132: AGETOP | Q132: 71863 | R132: PARAFUSO P/BUCHA S-10 | S132: Un | T132: 12 | U132: 12 | X132: 0 | Y132: 0
A133: S | B133: 2 | C133: S | D133: 0 | E133: 1 | F133: 6 | G133: 0 | H133: 0 | I133: 0 | J133: 0 | K133: 0 | M133: Serviço | N133: Serviço | O133: - | P133: AGETOP | Q133: 70393 | R133: BUCHA DE NYLON S-10 | S133: Un | T133: 12 | U133: 12 | X133: 0 | Y133: 0
A134: S | B134: 2 | C134: S | D134: 0 | E134: 1 | F134: 6 | G134: 0 | H134: 0 | I134: 0 | J134: 0 | K134: 0 | M134: Serviço | N134: Serviço | O134: - | P134: AGETOP | Q134: 91045 | R134: SUPORTE PARA COLETOR | S134: Un | T134: 2 | U134: 2 | X134: 0 | Y134: 0
A135: S | B135: 2 | C135: S | D135: 0 | E135: 1 | F135: 6 | G135: 0 | H135: 0 | I135: 0 | J135: 0 | K135: 0 | M135: Serviço | N135: Serviço | O135: - | P135: AGETOP | Q135: 250101 | R135: ENGENHEIRO - (OBRAS CIVIS) - Laudo de Estanqueidade | S135: H | T135: 16 | U135: 16 | X135: 0 | Y135: 0
A136: =CHOOSE(1+LOG(1+2*(ORÇAMENTO.Nivel="Nível 1")+4*(ORÇAMENTO.Nivel="Nível 2")+8*(ORÇAMENTO.Nivel="Nível 3")+16*(ORÇAMENTO.Nivel="Nível 4")+32*(ORÇAMENTO.Nivel="Serviço"),2),0,1,2,3,4,"S") -> 2 | B136: =IF(OR(C136="s",C136=0),OFFSET(B136,-1,0),C136) -> 2 | C136: =IF(OFFSET(C136,-1,0)="L",1,IF(OFFSET(C136,-1,0)=1,2,IF(OR(A136="s",A136=0),"S",IF(AND(OFFSET(C136,-1,0)=2,A136=4),3,IF(AND(OR(OFFSET(C136,-1,0)="s",OFFSET(C136,-1,0)=0),A136<>"s",A136>OFFSET(B136,-1,0)),OFFSET(B136,-1,0),A136))))) -> 2 | D136: =IF(OR(C136="S",C136=0),0,IF(ISERROR(K136),J136,SMALL(J136:K136,1))) -> 2 | E136: 1 | F136: 7 | G136: 0 | H136: 0 | I136: =IF(AND($C136<=4,$C136<>0),0,IF(AND($C136="S",$Y136>0),OFFSET(I136,-1,0)+1,OFFSET(I136,-1,0))) -> 0 | J136: 29 | K136: 2 | M136: Nível 2 | N136: Nível 2 | O136: - | P136: SINAPI | R136: ALVENARIAS E DIVISÓRIAS | S136: - | U136: 0 | X136: 0 | Y136: 0
A137: S | B137: 2 | C137: S | D137: 0 | E137: 1 | F137: 7 | G137: 0 | H137: 0 | I137: 0 | J137: 0 | K137: 0 | M137: Serviço | N137: Serviço | O137: - | P137: SINAPI | Q137: 87503 | R137: ALVENARIA DE VEDAÇÃO DE BLOCOS CERÂMICOS FURADOS NA HORIZONTAL DE 9X19X19CM (ESPESSURA 9CM) DE PAREDES COM ÁREA LÍQUIDA MAIOR OU IGUAL A 6M² SEM VÃOS E ARGAMASSA DE ASSENTAMENTO COM PREPARO EM BETONEIRA. AF_06/2014 | S137: M2 | T137: 9 | U137: 9 | X137: 0 | Y137: 0 | Z137: Referência: AGETOP - 100201
A138: 2 | B138: 2 | C138: 2 | D138: 5 | E138: 1 | F138: 8 | G138: 0 | H138: 0 | I138: 0 | J138: 27 | K138: 5 | M138: Nível 2 | N138: Nível 2 | O138: - | P138: SINAPI | R138: ESQUADRIAS METÁLICAS | S138: - | U138: 0 | X138: 0 | Y138: 0
A139: S | B139: 2 | C139: S | D139: 0 | E139: 1 | F139: 8 | G139: 0 | H139: 0 | I139: 0 | J139: 0 | K139: 0 | M139: Serviço | N139: Serviço | O139: - | P139: SINAPI | Q139: 73933/4 | R139: PORTA DE FERRO DE ABRIR TIPO BARRA CHATA, COM REQUADRO E GUARNICAO COMPLETA | S139: M2 | T139: 1.68 | U139: 1.68 | X139: 0 | Y139: 0 | Z139: Referência: AGETOP - 180501
A140: S | B140: 2 | C140: S | D140: 0 | E140: 1 | F140: 8 | G140: 0 | H140: 0 | I140: 0 | J140: 0 | K140: 0 | M140: Serviço | N140: Serviço | O140: - | P140: COMPOSIÇÃO | Q140: COMP 083_SEE | R140: CORRIMÃO PISO - SEDUC | S140: M | T140: 22 | U140: 22 | X140: 0 | Y140: 0
A141: S | B141: 2 | C141: S | D141: 0 | E141: 1 | F141: 8 | G141: 0 | H141: 0 | I141: 0 | J141: 0 | K141: 0 | M141: Serviço | N141: Serviço | O141: - | P141: AGETOP | Q141: 180304 | R141: PORTAO DE ABRIR CHAPA 14 PT-4 C/FERRAGENS | S141: m2 | T141: 6 | U141: 6 | X141: 0 | Y141: 0
A142: S | B142: 2 | C142: S | D142: 0 | E142: 1 | F142: 8 | G142: 0 | H142: 0 | I142: 0 | J142: 0 | K142: 0 | M142: Serviço | N142: Serviço | O142: - | P142: AGETOP | Q142: 180323 | R142: GRELHA PADRÃO AGETOP DE FERRO CHATO COM BERÇO (ESPAÇAMENTO ENTRE FACES = 1,5CM - NBR 9050 ACESSIBILIDADE) | S142: m2 | T142: 21.82 | U142: 21.82 | X142: 0 | Y142: 0
A143: 2 | B143: 2 | C143: 2 | D143: 3 | E143: 1 | F143: 9 | G143: 0 | H143: 0 | I143: 0 | J143: 22 | K143: 3 | M143: Nível 2 | N143: Nível 2 | O143: - | P143: SINAPI | R143: REVESTIMENTO DE PAREDE | S143: - | U143: 0 | X143: 0 | Y143: 0
A144: S | B144: 2 | C144: S | D144: 0 | E144: 1 | F144: 9 | G144: 0 | H144: 0 | I144: 0 | J144: 0 | K144: 0 | M144: Serviço | N144: Serviço | O144: - | P144: SINAPI | Q144: 87894 | R144: CHAPISCO APLICADO EM ALVENARIA (SEM PRESENÇA DE VÃOS) E ESTRUTURAS DE CONCRETO DE FACHADA, COM COLHER DE PEDREIRO. ARGAMASSA TRAÇO 1:3 COM PREPARO EM BETONEIRA 400L. AF_06/2014 | S144: M2 | T144: 10.7 | U144: 10.7 | X144: 0 | Y144: 0 | Z144: Referência: AGETOP - 200101
A145: S | B145: 2 | C145: S | D145: 0 | E145: 1 | F145: 9 | G145: 0 | H145: 0 | I145: 0 | J145: 0 | K145: 0 | M145: Serviço | N145: Serviço | O145: - | P145: SINAPI | Q145: 87547 | R145: MASSA ÚNICA, PARA RECEBIMENTO DE PINTURA, EM ARGAMASSA TRAÇO 1:2:8, PREPARO MECÂNICO COM BETONEIRA 400L, APLICADA MANUALMENTE EM FACES INTERNAS DE PAREDES, ESPESSURA DE 10MM, COM EXECUÇÃO DE TALISCAS. AF_06/2014 | S145: M2 | T145: 10.7 | U145: 10.7 | X145: 0 | Y145: 0 | Z145: Referência: AGETOP - 200403
A146: 2 | B146: 2 | C146: 2 | D146: 2 | E146: 1 | F146: 10 | G146: 0 | H146: 0 | I146: 0 | J146: 19 | K146: 2 | M146: Nível 2 | N146: Nível 2 | O146: - | P146: SINAPI | R146: FORROS | S146: - | U146: 0 | X146: 0 | Y146: 0
A147: S | B147: 2 | C147: S | D147: 0 | E147: 1 | F147: 10 | G147: 0 | H147: 0 | I147: 0 | J147: =IF(OR($C147="S",$C147=0),0,MATCH(0,OFFSET($D147,1,$C147,ROW($C$459)-ROW($C147)),0)) -> 0 | K147: =IF(OR($C147="S",$C147=0),0,MATCH(OFFSET($D147,0,$C147)+1,OFFSET($D147,1,$C147,ROW($C$459)-ROW($C147)),0)) -> 0 | M147: Serviço | N147: Serviço | O147: - | P147: AGETOP | Q147: 210460 | R147: FORRO DE PVC COM ESTRUTURA EM METALON PINTADA COM TINTA ALQUÍDICA D.F. | S147: m2 | T147: 49.6 | U147: 49.6 | X147: 0 | Y147: 0
A148: 2 | B148: 2 | C148: 2 | D148: 3 | E148: 1 | F148: 11 | G148: 0 | H148: 0 | I148: 0 | J148: 17 | K148: 3 | M148: Nível 2 | N148: Nível 2 | O148: - | P148: SINAPI | R148: REVESTIMENTO DE PISO | S148: - | U148: 0 | X148: 0 | Y148: 0
A149: S | B149: 2 | C149: S | D149: 0 | E149: =IF($C149=1,OFFSET(E149,-1,0)+1,OFFSET(E149,-1,0)) -> 1 | F149: =IF($C149=1,0,IF($C149=2,OFFSET(F149,-1,0)+1,OFFSET(F149,-1,0))) -> 11 | G149: =IF(AND($C149<=2,$C149<>0),0,IF($C149=3,OFFSET(G149,-1,0)+1,OFFSET(G149,-1,0))) -> 0 | H149: =IF(AND($C149<=3,$C149<>0),0,IF($C149=4,OFFSET(H149,-1,0)+1,OFFSET(H149,-1,0))) -> 0 | I149: 0 | J149: 0 | K149: 0 | M149: Serviço | N149: Serviço | O149: - | P149: SINAPI | Q149: 94992 | R149: EXECUÇÃO DE PASSEIO (CALÇADA) OU PISO DE CONCRETO COM CONCRETO MOLDADO IN LOCO, FEITO EM OBRA, ACABAMENTO CONVENCIONAL, ESPESSURA 6 CM, ARMADO. AF_07/2016 | S149: M2 | T149: 319.5 | U149: 319.5 | X149: 0 | Y149: 0 | Z149: Referência: AGETOP - 220104
A150: S | B150: 2 | C150: S | D150: 0 | E150: 1 | F150: 11 | G150: 0 | H150: 0 | I150: 0 | J150: 0 | K150: 0 | M150: Serviço | N150: Serviço | O150: - | P150: AGETOP | Q150: 221126 | R150: PISO DE LADRILHO HIDRÁULICO COLORIDO MODELO TÁTIL ( ALERTA OU DIRECIONAL) SEM LASTRO | S150: m2 | T150: 85 | U150: 85 | X150: 0 | Y150: 0
A151: 2 | B151: 2 | C151: 2 | D151: 3 | E151: 1 | F151: 12 | G151: 0 | H151: 0 | I151: 0 | J151: 14 | K151: 3 | M151: Nível 2 | N151: Nível 2 | O151: - | P151: SINAPI | R151: ADMINISTRAÇÃO | S151: - | U151: 0 | X151: 0 | Y151: 0
A152: S | B152: 2 | C152: S | D152: 0 | E152: 1 | F152: 12 | G152: 0 | H152: 0 | I152: 0 | J152: 0 | K152: 0 | M152: Serviço | N152: Serviço | O152: - | P152: SINAPI | Q152: 90777 | R152: ENGENHEIRO CIVIL DE OBRA JUNIOR COM ENCARGOS COMPLEMENTARES | S152: H | T152: 20 | U152: 20 | X152: 0 | Y152: 0 | Z152: Referência: AGETOP - 250101
A153: S | B153: 2 | C153: S | D153: 0 | E153: 1 | F153: 12 | G153: 0 | H153: 0 | I153: 0 | J153: 0 | K153: 0 | M153: Serviço | N153: Serviço | O153: - | P153: SINAPI | Q153: 90776 | R153: ENCARREGADO GERAL COM ENCARGOS COMPLEMENTARES | S153: H | T153: 220 | U153: 220 | X153: 0 | Y153: 0 | Z153: Referência: AGETOP - 250103
A154: 2 | B154: 2 | C154: 2 | D154: 8 | E154: 1 | F154: 13 | G154: 0 | H154: 0 | I154: 0 | J154: 11 | K154: 8 | M154: Nível 2 | N154: Nível 2 | O154: - | P154: SINAPI | R154: PINTURA | S154: - | U154: 0 | X154: 0 | Y154: 0
A155: S | B155: 2 | C155: S | D155: 0 | E155: 1 | F155: 13 | G155: 0 | H155: 0 | I155: 0 | J155: 0 | K155: 0 | M155: Serviço | N155: Serviço | O155: - | P155: AGETOP | Q155: 260104 | R155: REMOCAO DE PINTURA ANTIGA A LATEX | S155: m2 | T155: 45 | U155: 45 | X155: 0 | Y155: 0
A156: S | B156: 2 | C156: S | D156: 0 | E156: 1 | F156: 13 | G156: 0 | H156: 0 | I156: 0 | J156: 0 | K156: 0 | M156: Serviço | N156: Serviço | O156: - | P156: SINAPI | Q156: 88489 | R156: APLICAÇÃO MANUAL DE PINTURA COM TINTA LÁTEX ACRÍLICA EM PAREDES, DUAS DEMÃOS. AF_06/2014 | S156: M2 | T156: 1555 | U156: 1555 | X156: 0 | Y156: 0 | Z156: Referência: AGETOP - 261001
A157: S | B157: 2 | C157: S | D157: 0 | E157: 1 | F157: 13 | G157: 0 | H157: 0 | I157: 0 | J157: 0 | K157: 0 | M157: Serviço | N157: Serviço | O157: - | P157: SINAPI | Q157: 88497 | R157: APLICAÇÃO E LIXAMENTO DE MASSA LÁTEX EM PAREDES, DUAS DEMÃOS. AF_06/2014 | S157: M2 | T157: 45 | U157: 45 | X157: 0 | Y157: 0 | Z157: Referência: AGETOP - 261300
A158: S | B158: 2 | C158: S | D158: 0 | E158: 1 | F158: 13 | G158: 0 | H158: 0 | I158: 0 | J158: 0 | K158: 0 | M158: Serviço | N158: Serviço | O158: - | P158: SINAPI | Q158: 88487 | R158: APLICAÇÃO MANUAL DE PINTURA COM TINTA LÁTEX PVA EM PAREDES, DUAS DEMÃOS. AF_06/2014 | S158: M2 | T158: 90 | U158: 90 | X158: 0 | Y158: 0 | Z158: Referência: AGETOP - 261307
A159: S | B159: 2 | C159: S | D159: 0 | E159: 1 | F159: 13 | G159: 0 | H159: 0 | I159: 0 | J159: 0 | K159: 0 | M159: Serviço | N159: Serviço | O159: - | P159: SINAPI | Q159: 95468 | R159: PINTURA ESMALTE BRILHANTE (2 DEMAOS) SOBRE SUPERFICIE METALICA, INCLUSIVE PROTECAO COM ZARCAO (1 DEMAO) | S159: M2 | T159: 37.3 | U159: 37.3 | X159: 0 | Y159: 0 | Z159: Referência: AGETOP - 261602
A160: S | B160: 2 | C160: S | D160: 0 | E160: 1 | F160: 13 | G160: 0 | H160: 0 | I160: 0 | J160: 0 | K160: 0 | M160: Serviço | N160: Serviço | O160: - | P160: AGETOP | Q160: 261620 | R160: LETREIRO MÉDIO A GRANDE PORTE EM PAREDE FEITO A PINCEL | S160: m2 | T160: 7.2 | U160: 7.2 | X160: 0 | Y160: 0
A161: S | B161: 2 | C161: S | D161: 0 | E161: 1 | F161: 13 | G161: 0 | H161: 0 | I161: 0 | J161: 0 | K161: 0 | M161: Serviço | N161: Serviço | O161: - | P161: AGETOP | Q161: 261703 | R161: PINT.POLIESPORTIVA - 2 DEM.(PISOS E CIMENTADOS) | S161: m2 | T161: 92 | U161: 92 | X161: 0 | Y161: 0
A162: 2 | B162: 2 | C162: 2 | D162: 3 | E162: 1 | F162: 14 | G162: 0 | H162: 0 | I162: 0 | J162: 3 | K162: 112 | M162: Nível 2 | N162: Nível 2 | O162: - | P162: SINAPI | R162: DIVERSOS | S162: - | U162: 0 | X162: 0 | Y162: 0
A163: S | B163: 2 | C163: S | D163: 0 | E163: 1 | F163: 14 | G163: 0 | H163: 0 | I163: 0 | J163: 0 | K163: 0 | M163: Serviço | N163: Serviço | O163: - | P163: AGETOP | Q163: 271201 | R163: QUADRO DE GIZ (5,0X1,20 M C/EMBOÇO PINTURA COMPLETO) | S163: Un | T163: 1 | U163: 1 | X163: 0 | Y163: 0
A164: S | B164: 2 | C164: S | D164: 0 | E164: 1 | F164: 14 | G164: 0 | H164: 0 | I164: 0 | J164: 0 | K164: 0 | M164: Serviço | N164: Serviço | O164: - | P164: AGETOP | Q164: 271417 | R164: CANALETA CONCRETO DESEMPENADO 5 CM PD.AGETOP | S164: m | T164: 71.45 | U164: 71.45 | X164: 0 | Y164: 0
A165: 1 | B165: 1 | C165: 1 | D165: 9 | E165: 2 | F165: 0 | G165: 0 | H165: 0 | I165: 0 | J165: 294 | K165: 9 | L165: F | M165: Nível 1 | N165: Nível 1 | O165: 2. | P165: SINAPI | R165: IMPLANTAÇÃO | S165: - | T165: 3 | U165: 3 | X165: 0 | Y165: 0
A166: 2 | B166: 2 | C166: 2 | D166: 8 | E166: 2 | F166: 1 | G166: 0 | H166: 0 | I166: 0 | J166: 8 | K166: 11 | M166: Nível 2 | N166: Nível 2 | O166: - | P166: SINAPI | R166: SERVIÇO EM TERRA | S166: - | U166: 0 | X166: 0 | Y166: 0
A167: S | B167: 2 | C167: S | D167: 0 | E167: 2 | F167: 1 | G167: 0 | H167: 0 | I167: 0 | J167: 0 | K167: 0 | M167: Serviço | N167: Serviço | O167: - | P167: SINAPI | Q167: 79480 | R167: ESCAVACAO MECANICA CAMPO ABERTO EM SOLO EXCETO ROCHA ATE 2,00M PROFUNDIDADE | S167: M3 | T167: 17.81 | U167: 17.81 | X167: 0 | Y167: 0 | Z167: Referência: AGETOP - 41004
A168: S | B168: 2 | C168: S | D168: 0 | E168: 2 | F168: 1 | G168: 0 | H168: 0 | I168: 0 | J168: 0 | K168: 0 | M168: Serviço | N168: Serviço | O168: - | P168: SINAPI | Q168: 72898 | R168: CARGA E DESCARGA MECANIZADAS DE ENTULHO EM CAMINHAO BASCULANTE 6 M3 | S168: M3 | T168: 8.02 | U168: 8.02 | X168: 0 | Y168: 0 | Z168: Referência: AGETOP - 41005
A169: S | B169: 2 | C169: S | D169: 0 | E169: 2 | F169: 1 | G169: 0 | H169: 0 | I169: 0 | J169: 0 | K169: 0 | M169: Serviço | N169: Serviço | O169: - | P169: AGETOP | Q169: 41012 | R169: INDENIZAÇÃO DE JAZIDA | S169: m3 | T169: 8.02 | U169: 8.02 | X169: 0 | Y169: 0
A170: S | B170: 2 | C170: S | D170: 0 | E170: 2 | F170: 1 | G170: 0 | H170: 0 | I170: 0 | J170: 0 | K170: 0 | M170: Serviço | N170: Serviço | O170: - | P170: AGETOP | Q170: 41006 | R170: TRANSPORTE DE MATERIAL ESCAVADO M3.KM | S170: m3km | T170: 80.23 | U170: 80.23 | X170: 0 | Y170: 0
A171: S | B171: 2 | C171: S | D171: 0 | E171: 2 | F171: 1 | G171: 0 | H171: 0 | I171: 0 | J171: 0 | K171: 0 | M171: Serviço | N171: Serviço | O171: - | P171: AGETOP | Q171: 41010 | R171: TRANSPORTE COM LÂMINA ATE 100 M - (OBRAS CIVIS) | S171: m3 | T171: 9.79 | U171: 9.79 | X171: 0 | Y171: 0
A172: S | B172: 2 | C172: S | D172: 0 | E172: 2 | F172: 1 | G172: 0 | H172: 0 | I172: 0 | J172: 0 | K172: 0 | M172: Serviço | N172: Serviço | O172: - | P172: SINAPI | Q172: 74005/2 | R172: COMPACTACAO MECANICA C/ CONTROLE DO GC>=95% DO PN (AREAS) (C/MONIVELADORA 140 HP E ROLO COMPRESSOR VIBRATORIO 80 HP) | S172: M3 | T172: 14.25 | U172: 14.25 | X172: 0 | Y172: 0 | Z172: Referência: AGETOP - 41008
A173: S | B173: 2 | C173: S | D173: 0 | E173: 2 | F173: 1 | G173: 0 | H173: 0 | I173: 0 | J173: 0 | K173: 0 | M173: Serviço | N173: Serviço | O173: - | P173: SINAPI | Q173: 79472 | R173: REGULARIZACAO DE SUPERFICIES EM TERRA COM MOTONIVELADORA | S173: M2 | T173: 619.21 | U173: 619.21 | X173: 0 | Y173: 0
A174: 1 | B174: 1 | C174: 1 | D174: 120 | E174: 3 | F174: 0 | G174: 0 | H174: 0 | I174: 0 | J174: 285 | K174: 120 | L174: F | M174: Nível 1 | N174: Nível 1 | O174: 3. | P174: SINAPI | R174: BLOCO 3 SALAS SEDUC17 | S174: UN | T174: 3 | X174: 0 | Y174: 0
A175: 2 | B175: 2 | C175: 2 | D175: 2 | E175: 3 | F175: 1 | G175: 0 | H175: 0 | I175: 0 | J175: 119 | K175: 2 | M175: Nível 2 | N175: Nível 2 | O175: - | P175: SINAPI | R175: SERVIÇOS PRELIMINARES | S175: - | X175: 0 | Y175: 0
A176: S | B176: 2 | C176: S | D176: 0 | E176: 3 | F176: 1 | G176: 0 | H176: 0 | I176: 0 | J176: 0 | K176: 0 | M176: Serviço | N176: Serviço | O176: - | P176: AGETOP | Q176: 20701 | R176: LOCAÇÃO DA OBRA, EXECUÇÃO DE GABARITO SEM REAPROVEITAMENTO, INCLUSO PINTURA (FACE INTERNA DO RIPÃO 15CM) E PIQUETE COM TESTEMUNHA | S176: m2 | T176: 190.26 | U176: 570.78 | X176: 0 | Y176: 0
A177: 2 | B177: 2 | C177: 2 | D177: 3 | E177: 3 | F177: 2 | G177: 0 | H177: 0 | I177: 0 | J177: 117 | K177: 3 | M177: Nível 2 | N177: Nível 2 | O177: - | P177: SINAPI | R177: TRANSPORTES | S177: - | U177: 0 | X177: 0 | Y177: 0
A178: S | B178: 2 | C178: S | D178: 0 | E178: 3 | F178: 2 | G178: 0 | H178: 0 | I178: 0 | J178: 0 | K178: 0 | M178: Serviço | N178: Serviço | O178: - | P178: SINAPI | Q178: 72897 | R178: CARGA MANUAL DE ENTULHO EM CAMINHAO BASCULANTE 6 M3 | S178: M3 | T178: 12 | U178: 36 | X178: 0 | Y178: 0
A179: S | B179: 2 | C179: S | D179: 0 | E179: 3 | F179: 2 | G179: 0 | H179: 0 | I179: 0 | J179: 0 | K179: 0 | M179: Serviço | N179: Serviço | O179: - | P179: SINAPI | Q179: 72900 | R179: TRANSPORTE DE ENTULHO COM CAMINHAO BASCULANTE 6 M3, RODOVIA PAVIMENTADA, DMT 0,5 A 1,0 KM | S179: M3 | T179: 12 | U179: 36 | X179: 0 | Y179: 0
A180: 2 | B180: 2 | C180: 2 | D180: 8 | E180: 3 | F180: 3 | G180: 0 | H180: 0 | I180: 0 | J180: 114 | K180: 8 | M180: Nível 2 | N180: Nível 2 | O180: - | P180: SINAPI | R180: SERVIÇO EM TERRA | S180: - | U180: 0 | X180: 0 | Y180: 0
A181: S | B181: 2 | C181: S | D181: 0 | E181: 3 | F181: 3 | G181: 0 | H181: 0 | I181: 0 | J181: 0 | K181: 0 | M181: Serviço | N181: Serviço | O181: - | P181: SINAPI | Q181: 93358 | R181: ESCAVAÇÃO MANUAL DE VALA COM PROFUNDIDADE MENOR OU IGUAL A 1,30 M. AF_03/2016 | S181: M3 | T181: 9.35 | U181: 28.05 | X181: 0 | Y181: 0 | Z181: Referência: AGETOP - 40101
A182: S | B182: 2 | C182: S | D182: 0 | E182: 3 | F182: 3 | G182: 0 | H182: 0 | I182: 0 | J182: 0 | K182: 0 | M182: Serviço | N182: Serviço | O182: - | P182: SINAPI | Q182: 96995 | R182: REATERRO MANUAL APILOADO COM SOQUETE. AF_10/2017 | S182: M3 | T182: 5.42 | U182: 16.26 | X182: 0 | Y182: 0 | Z182: Referência: AGETOP - 40902
A183: S | B183: 2 | C183: S | D183: 0 | E183: 3 | F183: 3 | G183: 0 | H183: 0 | I183: 0 | J183: 0 | K183: 0 | M183: Serviço | N183: Serviço | O183: - | P183: SINAPI | Q183: 79480 | R183: ESCAVACAO MECANICA CAMPO ABERTO EM SOLO EXCETO ROCHA ATE 2,00M PROFUNDIDADE | S183: M3 | T183: 40 | U183: 120 | X183: 0 | Y183: 0 | Z183: Referência: AGETOP - 41004
A184: S | B184: 2 | C184: S | D184: 0 | E184: 3 | F184: 3 | G184: 0 | H184: 0 | I184: 0 | J184: 0 | K184: 0 | M184: Serviço | N184: Serviço | O184: - | P184: SINAPI | Q184: 72898 | R184: CARGA E DESCARGA MECANIZADAS DE ENTULHO EM CAMINHAO BASCULANTE 6 M3 | S184: M3 | T184: 40 | U184: 120 | X184: 0 | Y184: 0 | Z184: Referência: AGETOP - 41005
A185: S | B185: 2 | C185: S | D185: 0 | E185: 3 | F185: 3 | G185: 0 | H185: 0 | I185: 0 | J185: 0 | K185: 0 | M185: Serviço | N185: Serviço | O185: - | P185: AGETOP | Q185: 41012 | R185: INDENIZAÇÃO DE JAZIDA | S185: m3 | T185: 40 | U185: 120 | X185: 0 | Y185: 0
A186: S | B186: 2 | C186: S | D186: 0 | E186: 3 | F186: 3 | G186: 0 | H186: 0 | I186: 0 | J186: 0 | K186: 0 | M186: Serviço | N186: Serviço | O186: - | P186: AGETOP | Q186: 41006 | R186: TRANSPORTE DE MATERIAL ESCAVADO M3.KM | S186: m3km | T186: 40 | U186: 120 | X186: 0 | Y186: 0
A187: S | B187: 2 | C187: S | D187: 0 | E187: 3 | F187: 3 | G187: 0 | H187: 0 | I187: 0 | J187: 0 | K187: 0 | M187: Serviço | N187: Serviço | O187: - | P187: SINAPI | Q187: 74005/2 | R187: COMPACTACAO MECANICA C/ CONTROLE DO GC>=95% DO PN (AREAS) (C/MONIVELADORA 140 HP E ROLO COMPRESSOR VIBRATORIO 80 HP) | S187: M3 | T187: 32 | U187: 96 | X187: 0 | Y187: 0 | Z187: Referência: AGETOP - 41008
A188: 2 | B188: 2 | C188: 2 | D188: 11 | E188: 3 | F188: 4 | G188: 0 | H188: 0 | I188: 0 | J188: 106 | K188: 11 | M188: Nível 2 | N188: Nível 2 | O188: - | P188: SINAPI | R188: FUNDAÇÕES E SONDAGENS | S188: - | U188: 0 | X188: 0 | Y188: 0
A189: 3 | B189: 3 | C189: 3 | D189: 10 | E189: 3 | F189: 4 | G189: 1 | H189: 0 | I189: 0 | J189: 10 | K189: 19 | M189: Nível 3 | N189: Nível 3 | O189: - | P189: SINAPI | R189: ESTACAS E BLOCOS | S189: - | U189: 0 | X189: 0 | Y189: 0
A190: S | B190: 3 | C190: S | D190: 0 | E190: 3 | F190: 4 | G190: 1 | H190: 0 | I190: 0 | J190: 0 | K190: 0 | M190: Serviço | N190: Serviço | O190: - | P190: SINAPI | Q190: 98230 | R190: ESTACA BROCA DE CONCRETO, DIÂMETRO DE 30 CM, PROFUNDIDADE DE ATÉ 3 M, ESCAVAÇÃO MANUAL COM TRADO CONCHA, NÃO ARMADA. AF_03/2018 | S190: M | T190: 99 | U190: 297 | X190: 0 | Y190: 0 | Z190: Referência: AGETOP - 50302
A191: S | B191: 3 | C191: S | D191: 0 | E191: 3 | F191: 4 | G191: 1 | H191: 0 | I191: 0 | J191: 0 | K191: 0 | M191: Serviço | N191: Serviço | O191: - | P191: SINAPI | Q191: 96522 | R191: ESCAVAÇÃO MANUAL PARA BLOCO DE COROAMENTO OU SAPATA, SEM PREVISÃO DE FÔRMA. AF_06/2017 | S191: M3 | T191: 8.26 | U191: 24.78 | X191: 0 | Y191: 0 | Z191: Referência: AGETOP - 50901
A192: S | B192: 3 | C192: S | D192: 0 | E192: 3 | F192: 4 | G192: 1 | H192: 0 | I192: 0 | J192: 0 | K192: 0 | M192: Serviço | N192: Serviço | O192: - | P192: SINAPI | Q192: 96995 | R192: REATERRO MANUAL APILOADO COM SOQUETE. AF_10/2017 | S192: M3 | T192: 4.36 | U192: 13.08 | X192: 0 | Y192: 0 | Z192: Referência: AGETOP - 40902
A193: S | B193: 3 | C193: S | D193: 0 | E193: 3 | F193: 4 | G193: 1 | H193: 0 | I193: 0 | J193: 0 | K193: 0 | M193: Serviço | N193: Serviço | O193: - | P193: SINAPI | Q193: 94963 | R193: CONCRETO FCK = 15MPA, TRAÇO 1:3,4:3,5 (CIMENTO/ AREIA MÉDIA/ BRITA 1) - PREPARO MECÂNICO COM BETONEIRA 400 L. AF_07/2016 | S193: M3 | T193: 3.9 | U193: 11.7 | X193: 0 | Y193: 0
A194: S | B194: 3 | C194: S | D194: 0 | E194: 3 | F194: 4 | G194: 1 | H194: 0 | I194: 0 | J194: 0 | K194: 0 | M194: Serviço | N194: Serviço | O194: - | P194: SINAPI | Q194: 74157/4 | R194: LANCAMENTO/APLICACAO MANUAL DE CONCRETO EM FUNDACOES | S194: M3 | T194: 3.9 | U194: 11.7 | X194: 0 | Y194: 0 | Z194: Referência: AGETOP - 51026
A195: S | B195: 3 | C195: S | D195: 0 | E195: 3 | F195: 4 | G195: 1 | H195: 0 | I195: 0 | J195: 0 | K195: 0 | M195: Serviço | N195: Serviço | O195: - | P195: SINAPI | Q195: 96544 | R195: ARMAÇÃO DE BLOCO, VIGA BALDRAME OU SAPATA UTILIZANDO AÇO CA-50 DE 6,3 MM - MONTAGEM. AF_06/2017 | S195: KG | T195: 67.27 | U195: 201.81 | X195: 0 | Y195: 0 | Z195: Referência: AGETOP - 52003
A196: S | B196: 3 | C196: S | D196: 0 | E196: 3 | F196: 4 | G196: 1 | H196: 0 | I196: 0 | J196: 0 | K196: 0 | M196: Serviço | N196: Serviço | O196: - | P196: SINAPI | Q196: 96545 | R196: ARMAÇÃO DE BLOCO, VIGA BALDRAME OU SAPATA UTILIZANDO AÇO CA-50 DE 8 MM - MONTAGEM. AF_06/2017 | S196: KG | T196: 136.36 | U196: 409.08 | X196: 0 | Y196: 0 | Z196: Referência: AGETOP - 60304
A197: S | B197: 3 | C197: S | D197: 0 | E197: 3 | F197: 4 | G197: 1 | H197: 0 | I197: 0 | J197: 0 | K197: 0 | M197: Serviço | N197: Serviço | O197: - | P197: SINAPI | Q197: 96546 | R197: ARMAÇÃO DE BLOCO, VIGA BALDRAME OU SAPATA UTILIZANDO AÇO CA-50 DE 10 MM - MONTAGEM. AF_06/2017 | S197: KG | T197: 55.45 | U197: 166.35 | X197: 0 | Y197: 0 | Z197: Referência: AGETOP - 52005
A198: S | B198: 3 | C198: S | D198: 0 | E198: 3 | F198: 4 | G198: 1 | H198: 0 | I198: 0 | J198: 0 | K198: 0 | M198: Serviço | N198: Serviço | O198: - | P198: SINAPI | Q198: 96543 | R198: ARMAÇÃO DE BLOCO, VIGA BALDRAME E SAPATA UTILIZANDO AÇO CA-60 DE 5 MM - MONTAGEM. AF_06/2017 | S198: KG | T198: 38.18 | U198: 114.54 | X198: 0 | Y198: 0 | Z198: Referência: AGETOP - 52014
A199: 2 | B199: 2 | C199: 2 | D199: 27 | E199: 3 | F199: 5 | G199: 0 | H199: 0 | I199: 0 | J199: 95 | K199: 27 | M199: Nível 2 | N199: Nível 2 | O199: - | P199: SINAPI | R199: ESTRUTURA | S199: - | U199: 0 | X199: 0 | Y199: 0
A200: 3 | B200: 3 | C200: 3 | D200: 8 | E200: 3 | F200: 5 | G200: 1 | H200: 0 | I200: 0 | J200: 26 | K200: 8 | M200: Nível 3 | N200: Nível 3 | O200: - | P200: SINAPI | R200: VIGAS BALDRAMES | S200: - | U200: 0 | X200: 0 | Y200: 0
A201: S | B201: 3 | C201: S | D201: 0 | E201: 3 | F201: 5 | G201: 1 | H201: 0 | I201: 0 | J201: 0 | K201: 0 | M201: Serviço | N201: Serviço | O201: - | P201: SINAPI | Q201: 96527 | R201: ESCAVAÇÃO MANUAL DE VALA PARA VIGA BALDRAME, COM PREVISÃO DE FÔRMA. AF_06/2017 | S201: M3 | T201: 9.94 | U201: 29.82 | X201: 0 | Y201: 0 | Z201: Referência: AGETOP - 40101
A202: S | B202: 3 | C202: S | D202: 0 | E202: 3 | F202: 5 | G202: 1 | H202: 0 | I202: 0 | J202: 0 | K202: 0 | M202: Serviço | N202: Serviço | O202: - | P202: SINAPI | Q202: 96995 | R202: REATERRO MANUAL APILOADO COM SOQUETE. AF_10/2017 | S202: M3 | T202: 5.69 | U202: 17.07 | X202: 0 | Y202: 0 | Z202: Referência: AGETOP - 50903
A203: S | B203: 3 | C203: S | D203: 0 | E203: 3 | F203: 5 | G203: 1 | H203: 0 | I203: 0 | J203: 0 | K203: 0 | M203: Serviço | N203: Serviço | O203: - | P203: AGETOP | Q203: 60191 | R203: FORMA DE TABUA CINTA BALDRAME U=8 VEZES | S203: m2 | T203: 75.67 | U203: 227.01 | X203: 0 | Y203: 0
A204: S | B204: 3 | C204: S | D204: 0 | E204: 3 | F204: 5 | G204: 1 | H204: 0 | I204: 0 | J204: 0 | K204: 0 | M204: Serviço | N204: Serviço | O204: - | P204: SINAPI | Q204: 94963 | R204: CONCRETO FCK = 15MPA, TRAÇO 1:3,4:3,5 (CIMENTO/ AREIA MÉDIA/ BRITA 1) - PREPARO MECÂNICO COM BETONEIRA 400 L. AF_07/2016 | S204: M3 | T204: 4.25 | U204: 12.75 | X204: 0 | Y204: 0
A205: S | B205: 3 | C205: S | D205: 0 | E205: 3 | F205: 5 | G205: 1 | H205: 0 | I205: 0 | J205: 0 | K205: 0 | M205: Serviço | N205: Serviço | O205: - | P205: SINAPI | Q205: 74157/4 | R205: LANCAMENTO/APLICACAO MANUAL DE CONCRETO EM FUNDACOES | S205: M3 | T205: 4.25 | U205: 12.75 | X205: 0 | Y205: 0 | Z205: Referência: AGETOP - 51055
A206: S | B206: 3 | C206: S | D206: 0 | E206: 3 | F206: 5 | G206: 1 | H206: 0 | I206: 0 | J206: 0 | K206: 0 | M206: Serviço | N206: Serviço | O206: - | P206: SINAPI | Q206: 96545 | R206: ARMAÇÃO DE BLOCO, VIGA BALDRAME OU SAPATA UTILIZANDO AÇO CA-50 DE 8 MM - MONTAGEM. AF_06/2017 | S206: KG | T206: 173.64 | U206: 520.92 | X206: 0 | Y206: 0 | Z206: Referência: AGETOP - 52004
... 326 more rows

Sheet Resumo
A3: UNIDADE ESCOLAR | F3: CÓDIGO INEP
A4: =Orçamento!$O$4 -> COLÉGIO ESTADUAL SÃO GERALDO | F4: =Orçamento!W4 -> 52038343
A6: OBRA | F6: CIDADE
A7: =Orçamento!$O$7 -> AMPLIAÇÃO E REFORMA | F7: =Orçamento!$W$7 -> GOIANIRA
A9: ENDEREÇO | F9: CRECE
A10: =Orçamento!$R$10 -> RUA 1 S/N, VILA LEO LYNCE, CEP:75370-000 | F10: =Orçamento!$O$10 -> INHUMAS
A12: REFERÊNCIA | C12: DATA | F12: ÁREA TOTAL CONSTRUÍDA (M²)
A13: =CONCATENATE("AGETOP E SINAPI - ",Orçamento!$Y$10) -> AGETOP E SINAPI - NÃO DESONERADA | C13: =Orçamento!$S$7 -> 2020-04-08 | F13: =Orçamento!$S$13 -> 2504.21
A15: RESUMO GERAL DO ORÇAMENTO
A16: ITEM | B16: DESCRIÇÃO DOS SERVIÇOS | F16: PREÇO SEM BDI | G16: PREÇO COM BDI | H16: PARTICIP. (%)
A17: 1. | B17: =Orçamento!$P512 -> REFORMA | F17: =IFERROR(Orçamento!S512,"-") -> 0 | G17: =IFERROR(Orçamento!W512,"") -> 0 | H17: =Orçamento!Z512 -> 
A18: 2. | B18: =Orçamento!$P513 -> IMPLANTAÇÃO | F18: =IFERROR(Orçamento!S513,"-") -> 0 | G18: =IFERROR(Orçamento!W513,"") -> 0 | H18: =Orçamento!Z513 -> 
A19: 3. | B19: BLOCO 3 SALAS SEDUC17 (x3) | F19: =IFERROR(Orçamento!S514,"-") -> 0 | G19: =IFERROR(Orçamento!W514,"") -> 0 | H19: =Orçamento!Z514 -> 
A20: 4. | B20: =Orçamento!$P515 -> BLOCO SANITÁRIO SEDUC13 | F20: =IFERROR(Orçamento!S515,"-") -> 0 | G20: =IFERROR(Orçamento!W515,"") -> 0 | H20: =Orçamento!Z515 -> 
A21: 5. | B21: =Orçamento!$P516 ->  | F21: =IFERROR(Orçamento!S516,"-") -> 0 | G21: =IFERROR(Orçamento!W516,"") -> 0 | H21: =Orçamento!Z516 -> 
A22: 6. | B22: =Orçamento!$P517 ->  | F22: =IFERROR(Orçamento!S517,"-") -> 0 | G22: =IFERROR(Orçamento!W517,"") -> 0 | H22: =Orçamento!Z517 -> 
A23: 7. | B23: =Orçamento!$P518 ->  | F23: =IFERROR(Orçamento!S518,"-") -> 0 | G23: =IFERROR(Orçamento!W518,"") -> 0 | H23: =Orçamento!Z518 -> 
A24: 8. | B24: =Orçamento!$P519 ->  | F24: =IFERROR(Orçamento!S519,"-") -> 0 | G24: =IFERROR(Orçamento!W519,"") -> 0 | H24: =Orçamento!Z519 -> 
A25: 9. | B25: =Orçamento!$P520 ->  | F25: =IFERROR(Orçamento!S520,"-") -> 0 | G25: =IFERROR(Orçamento!W520,"") -> 0 | H25: =Orçamento!Z520 -> 
A26: 10. | B26: =Orçamento!$P521 ->  | F26: =IFERROR(Orçamento!S521,"-") -> 0 | G26: =IFERROR(Orçamento!W521,"") -> 0 | H26: =Orçamento!Z521 -> 
A27: 11. | B27: =Orçamento!$P522 ->  | F27: =IFERROR(Orçamento!S522,"-") -> 0 | G27: =IFERROR(Orçamento!W522,"") -> 0 | H27: =Orçamento!Z522 -> 
A28: 12. | B28: =Orçamento!$P523 ->  | F28: =IFERROR(Orçamento!S523,"-") -> 0 | G28: =IFERROR(Orçamento!W523,"") -> 0 | H28: =Orçamento!Z523 -> 
A29: 13. | B29: =Orçamento!$P524 ->  | F29: =IFERROR(Orçamento!S524,"-") -> 0 | G29: =IFERROR(Orçamento!W524,"") -> 0 | H29: =Orçamento!Z524 -> 
A30: 14. | B30: =Orçamento!$P525 ->  | F30: =IFERROR(Orçamento!S525,"-") -> 0 | G30: =IFERROR(Orçamento!W525,"") -> 0 | H30: =Orçamento!Z525 -> 
A31: 15. | B31: =Orçamento!$P526 ->  | F31: =IFERROR(Orçamento!S526,"-") -> 0 | G31: =IFERROR(Orçamento!W526,"") -> 0 | H31: =Orçamento!Z526 -> 
A32: 16. | B32: =Orçamento!$P527 ->  | F32: =IFERROR(Orçamento!S527,"-") -> 0 | G32: =IFERROR(Orçamento!W527,"") -> 0 | H32: =Orçamento!Z527 -> 
A33: 17. | B33: =Orçamento!$P528 ->  | F33: =IFERROR(Orçamento!S528,"-") -> 0 | G33: =IFERROR(Orçamento!W528,"") -> 0 | H33: =Orçamento!Z528 -> 
A34: 18. | B34: =Orçamento!$P529 ->  | F34: =IFERROR(Orçamento!S529,"-") -> 0 | G34: =IFERROR(Orçamento!W529,"") -> 0 | H34: =Orçamento!Z529 -> 
A35: 19. | B35: =Orçamento!$P530 ->  | F35: =IFERROR(Orçamento!S530,"-") -> 0 | G35: =IFERROR(Orçamento!W530,"") -> 0 | H35: =Orçamento!Z530 -> 
A36: 20. | B36: =Orçamento!$P531 ->  | F36: =IFERROR(Orçamento!S531,"-") -> 0 | G36: =IFERROR(Orçamento!W531,"") -> 0 | H36: =Orçamento!Z531 -> 
A37: TOTAL GERAL DO ORÇAMENTO (R$) | F37: =SUM(F17:F36) -> 0 | G37: 0 | H37: =SUM(H17:H36) -> 

Sheet Somatório
B3: UNIDADE ESCOLAR | E3: CÓDIGO INEP
B4: =Orçamento!$O$4 -> COLÉGIO ESTADUAL SÃO GERALDO | E4: =Orçamento!W4 -> 52038343
B6: OBRA | E6: CIDADE
B7: =Orçamento!$O$7 -> AMPLIAÇÃO E REFORMA | E7: =Orçamento!$W$7 -> GOIANIRA
B9: ENDEREÇO | E9: CRECE
B10: =Orçamento!$R$10 -> RUA 1 S/N, VILA LEO LYNCE, CEP:75370-000 | E10: =Orçamento!$O$10 -> INHUMAS
B12: REFERÊNCIA | D12: DATA | E12: ÁREA TOTAL CONSTRUÍDA (M²)
B13: =CONCATENATE("AGETOP E SINAPI - ",Orçamento!$Y$10) -> AGETOP E SINAPI - NÃO DESONERADA | D13: =Orçamento!$S$7 -> 2020-04-08 | E13: =Orçamento!$S$13 -> 2504.21
A14: FILTRO
B15: SOMATÓRIO DE SERVIÇOS
A16: ↓ | B16: ITEM | C16: DESCRIÇÃO DOS SERVIÇOS | D16: PREÇO SEM BDI (R$) | E16: PREÇO COM BDI (R$) | F16: PARTIC. ( % )
A17: =IF(D17>0,"F","") ->  | B17: a. | C17: =Orçamento!P478 -> SERVIÇOS PRELIMINARES | D17: =Orçamento!S478 -> 0 | E17: =Orçamento!W478 -> 0 | F17: =Orçamento!Z478 -> 0
A18: =IF(D18>0,"F","") ->  | B18: b. | C18: =Orçamento!P479 -> TRANSPORTES | D18: =Orçamento!S479 -> 0 | E18: =Orçamento!W479 -> 0 | F18: =Orçamento!Z479 -> 0
B19: c. | C19: =Orçamento!P480 -> SERVIÇO EM TERRA | D19: =Orçamento!S480 -> 0 | E19: =Orçamento!W480 -> 0 | F19: =Orçamento!Z480 -> 0
B20: d. | C20: =Orçamento!P481 -> FUNDAÇÕES E SONDAGENS | D20: =Orçamento!S481 -> 0 | E20: =Orçamento!W481 -> 0 | F20: =Orçamento!Z481 -> 0
B21: e. | C21: =Orçamento!P482 -> ESTRUTURA | D21: =Orçamento!S482 -> 0 | E21: =Orçamento!W482 -> 0 | F21: =Orçamento!Z482 -> 0
B22: f. | C22: =Orçamento!P483 -> INSTALAÇÕES ELÉTRICAS | D22: =Orçamento!S483 -> 0 | E22: =Orçamento!W483 -> 0 | F22: =Orçamento!Z483 -> 0
B23: g. | C23: =Orçamento!P484 -> INSTALAÇÕES HIDROSSANITÁRIAS | D23: =Orçamento!S484 -> 0 | E23: =Orçamento!W484 -> 0 | F23: =Orçamento!Z484 -> 0
B24: h | C24: =Orçamento!P485 -> INSTALAÇÕES ESPECIAIS | D24: =Orçamento!S485 -> 0 | E24: =Orçamento!W485 -> 0 | F24: =Orçamento!Z485 -> 0
B25: i. | C25: =Orçamento!P486 -> ALVENARIAS E DIVISÓRIAS | D25: =Orçamento!S486 -> 0 | E25: =Orçamento!W486 -> 0 | F25: =Orçamento!Z486 -> 0
B26: j. | C26: =Orçamento!P487 -> ALVENARIA AUTO-PORTANTE | D26: =Orçamento!S487 -> 0 | E26: =Orçamento!W487 -> 0 | F26: =Orçamento!Z487 -> 0
B27: k. | C27: =Orçamento!P488 -> IMPERMEABILIZACAO | D27: =Orçamento!S488 -> 0 | E27: =Orçamento!W488 -> 0 | F27: =Orçamento!Z488 -> 0
B28: l. | C28: =Orçamento!P489 -> ISOLAMENTO TÉRMICO E ACÚSTICO | D28: =Orçamento!S489 -> 0 | E28: =Orçamento!W489 -> 0 | F28: =Orçamento!Z489 -> 0
B29: m. | C29: =Orçamento!P490 -> ESTRUTURA DE MADEIRA | D29: =Orçamento!S490 -> 0 | E29: =Orçamento!W490 -> 0 | F29: =Orçamento!Z490 -> 0
B30: n. | C30: =Orçamento!P491 -> ESTRUTURAS METÁLICAS | D30: =Orçamento!S491 -> 0 | E30: =Orçamento!W491 -> 0 | F30: =Orçamento!Z491 -> 0
B31: o. | C31: =Orçamento!P492 -> COBERTURAS | D31: =Orçamento!S492 -> 0 | E31: =Orçamento!W492 -> 0 | F31: =Orçamento!Z492 -> 0
B32: p. | C32: =Orçamento!P493 -> ESQUADRIAS DE MADEIRA | D32: =Orçamento!S493 -> 0 | E32: =Orçamento!W493 -> 0 | F32: =Orçamento!Z493 -> 0
B33: q. | C33: =Orçamento!P494 -> ESQUADRIAS METÁLICAS | D33: =Orçamento!S494 -> 0 | E33: =Orçamento!W494 -> 0 | F33: =Orçamento!Z494 -> 0
B34: r. | C34: =Orçamento!P495 -> VIDROS | D34: =Orçamento!S495 -> 0 | E34: =Orçamento!W495 -> 0 | F34: =Orçamento!Z495 -> 0
B35: s. | C35: =Orçamento!P496 -> REVESTIMENTO DE PAREDE | D35: =Orçamento!S496 -> 0 | E35: =Orçamento!W496 -> 0 | F35: =Orçamento!Z496 -> 0
B36: t. | C36: =Orçamento!P497 -> FORROS | D36: =Orçamento!S497 -> 0 | E36: =Orçamento!W497 -> 0 | F36: =Orçamento!Z497 -> 0
B37: u. | C37: =Orçamento!P498 -> REVESTIMENTO DE PISO | D37: =Orçamento!S498 -> 0 | E37: =Orçamento!W498 -> 0 | F37: =Orçamento!Z498 -> 0
B38: v. | C38: =Orçamento!P499 -> FERRAGENS | D38: =Orçamento!S499 -> 0 | E38: =Orçamento!W499 -> 0 | F38: =Orçamento!Z499 -> 0
B39: w. | C39: =Orçamento!P500 -> MARCENARIA | D39: =Orçamento!S500 -> 0 | E39: =Orçamento!W500 -> 0 | F39: =Orçamento!Z500 -> 0
B40: x. | C40: =Orçamento!P501 -> ADMINISTRAÇÃO | D40: =Orçamento!S501 -> 0 | E40: =Orçamento!W501 -> 0 | F40: =Orçamento!Z501 -> 0
B41: y. | C41: =Orçamento!P502 -> PINTURA | D41: =Orçamento!S502 -> 0 | E41: =Orçamento!W502 -> 0 | F41: =Orçamento!Z502 -> 0
B42: z. | C42: =Orçamento!P503 -> DIVERSOS | D42: =Orçamento!S503 -> 0 | E42: =Orçamento!W503 -> 0 | F42: =Orçamento!Z503 -> 0
A43: F | B43: TOTAL GERAL DO ORÇAMENTO | D43: =SUM(D17:D42) -> 0 | E43: =SUM(E17:E42) -> 0 | F43: =SUM(F17:F42) -> 0
B45: (*) Para itens da AGETOP, os vidros não estão inclusos nas esquadrias e já foram considerados os custos de contramarco para as esquadrias de alumínio;

Sheet Cronog_60_Dias
D2: UNIDADE ESCOLAR | I2: PRAZO
D3: =Orçamento!$O$4 -> COLÉGIO ESTADUAL SÃO GERALDO | I3: 60 DIAS CORRIDOS
D5: OBRA | I5: DATA
D6: =Orçamento!$O$7 -> AMPLIAÇÃO E REFORMA | I6: =Orçamento!$S$7 -> 2020-04-08
D8: LOCAL | I8: ÁREA TOTAL CONSTRUÍDA (M²)
A9: FILTRO | D9: =Orçamento!$W$7 -> GOIANIRA | I9: =Orçamento!$S$13 -> 2504.21
B11: CRONOGRAMA - FÍSICO FINANCEIRO
A12: ↓ | B12: CUSTO TOTAL: | C12: =D92 -> 0 | D12: VALOR | E12: Dias: | F12: 30 | J12: 60 | N12: TOTAL
B13: DESCRIÇÃO DOS SERVIÇOS | E13: % | F13: 1ª PARCELA | J13: 2ª PARCELA
A14: =IF(D14>0,"F","") ->  | B14: SERVIÇOS PRELIMINARES | D14: =Orçamento!W478 -> 0 | E14: =Orçamento!Z478 -> 0 | F14: =ROUND(F16*$D$14,2) -> 0 | J14: =ROUND(J16*$D$14,2) -> 0 | N14: =SUM(F14:M14) -> 0 | Q14: =F14 -> 0 | R14: =J14 -> 0 | S14: =Q14+R14 -> 0 | T14: =IF(S14=N14,"OK","ERRO") -> OK
A15: =IF(A14="F",A14,"") ->  | S15: =Q15+R15 -> 0
A16: =IF(A15="F",A15,"") ->  | F16: 1 | J16: =1-F16 -> 0 | N16: =IFERROR(E14/100,"") -> 0 | S16: 0
A17: =IF(D17>0,"F","") ->  | B17: TRANSPORTES | D17: =Orçamento!W479 -> 0 | E17: =Orçamento!Z479 -> 0 | F17: =ROUND(F19*$D$17,2) -> 0 | J17: =ROUND(J19*$D$17,2) -> 0 | N17: =SUM(F17:M17) -> 0 | Q17: =F17 -> 0 | R17: =J17 -> 0 | S17: 0 | T17: =IF(S17=N17,"OK","ERRO") -> OK
A18: =IF(A17="F",A17,"") ->  | R18: 0 | S18: 0
A19: =IF(A18="F",A18,"") ->  | F19: 0.48 | J19: =1-F19 -> 0.52 | N19: =IFERROR(E17/100,"") -> 0 | S19: 0
A20: =IF(D20>0,"F","") ->  | B20: SERVIÇO EM TERRA | D20: =Orçamento!W480 -> 0 | E20: =Orçamento!Z480 -> 0 | F20: =ROUND(F22*$D$20,2) -> 0 | J20: =ROUND(J22*$D$20,2) -> 0 | N20: =SUM(F20:M20) -> 0 | Q20: 0 | R20: 0 | S20: 0 | T20: =IF(S20=N20,"OK","ERRO") -> OK
A21: =IF(A20="F",A20,"") ->  | S21: 0
A22: =IF(A21="F",A21,"") ->  | F22: 1 | J22: =1-F22 -> 0 | N22: =IFERROR(E20/100,"") -> 0 | S22: 0
A23: =IF(D23>0,"F","") ->  | B23: FUNDAÇÕES E SONDAGENS | D23: =Orçamento!W481 -> 0 | E23: =Orçamento!Z481 -> 0 | F23: =ROUND(F25*$D$23,2) -> 0 | J23: =ROUND(J25*$D$23,2) -> 0 | N23: =SUM(F23:M23) -> 0 | Q23: 0 | R23: 0 | S23: 0 | T23: OK
A24: =IF(A23="F",A23,"") ->  | S24: 0
A25: =IF(A24="F",A24,"") ->  | F25: 1 | J25: =1-F25 -> 0 | N25: =IFERROR(E23/100,"") -> 0 | S25: 0
A26: =IF(D26>0,"F","") ->  | B26: ESTRUTURA | D26: =Orçamento!W482 -> 0 | E26: =Orçamento!Z482 -> 0 | F26: =ROUND(F28*$D$26,2) -> 0 | J26: =ROUND(J28*$D$26,2) -> 0 | N26: =SUM(F26:M26) -> 0 | Q26: 0 | R26: 0 | S26: 0 | T26: =IF(S26=N26,"OK","ERRO") -> OK
A27: =IF(A26="F",A26,"") ->  | S27: 0
A28: =IF(A27="F",A27,"") ->  | F28: 0.49 | J28: =1-F28 -> 0.51 | N28: =IFERROR(E26/100,"") -> 0 | S28: 0
A29: =IF(D29>0,"F","") ->  | B29: INST.ELET/TELEFÔNICA/CABEAMENTO ESTRUTURADO | D29: =Orçamento!W483 -> 0 | E29: =Orçamento!Z483 -> 0 | F29: =ROUND(F31*$D$29,2) -> 0 | J29: =ROUND(J31*$D$29,2) -> 0 | N29: =SUM(F29:M29) -> 0 | Q29: 0 | R29: 0 | S29: 0 | T29: OK
A30: =IF(A29="F",A29,"") ->  | S30: 0
A31: =IF(A30="F",A30,"") ->  | F31: 0.4 | J31: =1-F31 -> 0.6 | N31: =IFERROR(E29/100,"") -> 0 | S31: 0
A32: =IF(D32>0,"F","") ->  | B32: INSTALAÇÕES HIDROSSANITÁRIAS | D32: =Orçamento!W484 -> 0 | E32: =Orçamento!Z484 -> 0 | F32: =ROUND(F34*$D$32,2) -> 0 | J32: =ROUND(J34*$D$32,2) -> 0 | N32: =SUM(F32:M32) -> 0 | Q32: 0 | R32: 0 | S32: 0 | T32: =IF(S32=N32,"OK","ERRO") -> OK
A33: =IF(A32="F",A32,"") ->  | S33: 0
A34: =IF(A33="F",A33,"") ->  | F34: 0.48 | J34: =1-F34 -> 0.52 | N34: =IFERROR(E32/100,"") -> 0 | S34: 0
A35: =IF(D35>0,"F","") ->  | B35: INSTALAÇÕES ESPECIAIS | D35: =Orçamento!W485 -> 0 | E35: =Orçamento!Z485 -> 0 | F35: =ROUND(F37*$D$35,2) -> 0 | J35: =ROUND(J37*$D$35,2) -> 0 | N35: =SUM(F35:M35) -> 0 | Q35: 0 | R35: 0 | S35: 0 | T35: OK
A36: =IF(A35="F",A35,"") ->  | S36: 0
A37: =IF(A36="F",A36,"") ->  | F37: 1 | J37: =1-F37 -> 0 | N37: =IFERROR(E35/100,"") -> 0 | S37: 0
A38: =IF(D38>0,"F","") ->  | B38: ALVENARIA E DIVISÓRIAS | D38: =Orçamento!W486 -> 0 | E38: =Orçamento!Z486 -> 0 | F38: =ROUND(F40*$D$38,2) -> 0 | J38: =ROUND(J40*$D$38,2) -> 0 | N38: =SUM(F38:M38) -> 0 | Q38: 0 | R38: 0 | S38: 0 | T38: =IF(S38=N38,"OK","ERRO") -> OK
A39: =IF(A38="F",A38,"") ->  | S39: 0
A40: =IF(A39="F",A39,"") ->  | F40: 1 | J40: =1-F40 -> 0 | N40: =IFERROR(E38/100,"") -> 0 | S40: 0
A41: =IF(D41>0,"F","") ->  | B41: ALVENARIA AUTO-PORTANTE | D41: =Orçamento!W487 -> 0 | E41: =Orçamento!Z487 -> 0 | F41: =ROUND(F43*$D$41,2) -> 0 | J41: =ROUND(J43*$D$41,2) -> 0 | N41: =SUM(F41:M41) -> 0 | Q41: 0 | R41: 0 | S41: 0 | T41: OK
A42: =IF(A41="F",A41,"") ->  | S42: 0
A43: =IF(A42="F",A42,"") ->  | F43: 1 | J43: =1-F43 -> 0 | N43: =IFERROR(E41/100,"") -> 0 | S43: 0
A44: =IF(D44>0,"F","") ->  | B44: IMPERMEABILIZAÇÃO | D44: =Orçamento!W488 -> 0 | E44: =Orçamento!Z488 -> 0 | F44: =ROUND(F46*$D$44,2) -> 0 | J44: =ROUND(J46*$D$44,2) -> 0 | N44: =SUM(F44:M44) -> 0 | Q44: 0 | R44: 0 | S44: 0 | T44: =IF(S44=N44,"OK","ERRO") -> OK
A45: =IF(A44="F",A44,"") ->  | S45: 0
A46: =IF(A45="F",A45,"") ->  | F46: 1 | J46: =1-F46 -> 0 | N46: =IFERROR(E44/100,"") -> 0 | S46: 0
A47: =IF(D47>0,"F","") ->  | B47: ISOLAMENTO TÉRMICO E ACÚSTICO | D47: =Orçamento!W489 -> 0 | E47: =Orçamento!Z489 -> 0 | F47: =ROUND(F49*$D$47,2) -> 0 | J47: =ROUND(J49*$D$47,2) -> 0 | N47: =SUM(F47:M47) -> 0 | Q47: 0 | R47: 0 | S47: 0 | T47: OK
A48: =IF(A47="F",A47,"") ->  | S48: 0
A49: =IF(A48="F",A48,"") ->  | F49: 0.5 | J49: =1-F49 -> 0.5 | N49: =IFERROR(E47/100,"") -> 0 | S49: 0
A50: =IF(D50>0,"F","") ->  | B50: ESTRUTURA DE MADEIRA | D50: =Orçamento!W490 -> 0 | E50: =Orçamento!Z490 -> 0 | F50: =ROUND(F52*$D$50,2) -> 0 | J50: =ROUND(J52*$D$50,2) -> 0 | N50: =SUM(F50:M50) -> 0 | Q50: 0 | R50: 0 | S50: 0 | T50: =IF(S50=N50,"OK","ERRO") -> OK
A51: =IF(A50="F",A50,"") ->  | S51: 0
A52: =IF(A51="F",A51,"") ->  | F52: 0.4 | J52: =1-F52 -> 0.6 | N52: =IFERROR(E50/100,"") -> 0 | S52: 0
A53: =IF(D53>0,"F","") ->  | B53: ESTRUTURA METÁLICA | D53: =Orçamento!W491 -> 0 | E53: =Orçamento!Z491 -> 0 | F53: =ROUND(F55*$D$53,2) -> 0 | J53: =ROUND(J55*$D$53,2) -> 0 | N53: =SUM(F53:M53) -> 0 | Q53: 0 | R53: 0 | S53: 0 | T53: OK
A54: =IF(A53="F",A53,"") ->  | S54: 0
A55: =IF(A54="F",A54,"") ->  | F55: 0.35 | J55: =1-F55 -> 0.65 | N55: =IFERROR(E53/100,"") -> 0 | S55: 0
A56: =IF(D56>0,"F","") ->  | B56: COBERTURAS | D56: =Orçamento!W492 -> 0 | E56: =Orçamento!Z492 -> 0 | F56: =ROUND(F58*$D$56,2) -> 0 | J56: =ROUND(J58*$D$56,2) -> 0 | N56: =SUM(F56:M56) -> 0 | Q56: 0 | R56: 0 | S56: 0 | T56: =IF(S56=N56,"OK","ERRO") -> OK
A57: =IF(A56="F",A56,"") ->  | S57: 0
A58: =IF(A57="F",A57,"") ->  | F58: 0 | J58: =1-F58 -> 1 | N58: =IFERROR(E56/100,"") -> 0 | S58: 0
A59: =IF(D59>0,"F","") ->  | B59: ESQUADRIAS DE MADEIRA | D59: =Orçamento!W493 -> 0 | E59: =Orçamento!Z493 -> 0 | F59: =ROUND(F61*$D$59,2) -> 0 | J59: =ROUND(J61*$D$59,2) -> 0 | N59: =SUM(F59:M59) -> 0 | Q59: 0 | R59: 0 | S59: 0 | T59: OK
A60: =IF(A59="F",A59,"") ->  | S60: 0
A61: =IF(A60="F",A60,"") ->  | F61: 0.54 | J61: =1-F61 -> 0.46 | N61: =IFERROR(E59/100,"") -> 0 | S61: 0
A62: =IF(D62>0,"F","") ->  | B62: ESQUADRIAS METÁLICAS | D62: =Orçamento!W494 -> 0 | E62: =Orçamento!Z494 -> 0 | F62: =ROUND(F64*$D$62,2) -> 0 | J62: =ROUND(J64*$D$62,2) -> 0 | N62: =SUM(F62:M62) -> 0 | Q62: 0 | R62: 0 | S62: 0 | T62: =IF(S62=N62,"OK","ERRO") -> OK
A63: =IF(A62="F",A62,"") ->  | S63: 0
A64: =IF(A63="F",A63,"") ->  | F64: 0.49 | J64: =1-F64 -> 0.51 | N64: =IFERROR(E62/100,"") -> 0 | S64: 0
A65: =IF(D65>0,"F","") ->  | B65: VIDROS | D65: =Orçamento!W495 -> 0 | E65: =Orçamento!Z495 -> 0 | F65: =ROUND(F67*$D$65,2) -> 0 | J65: =ROUND(J67*$D$65,2) -> 0 | N65: =SUM(F65:M65) -> 0 | Q65: 0 | R65: 0 | S65: 0 | T65: OK
A66: =IF(A65="F",A65,"") ->  | S66: 0
A67: =IF(A66="F",A66,"") ->  | F67: 0 | J67: =1-F67 -> 1 | N67: =IFERROR(E65/100,"") -> 0 | S67: 0
A68: =IF(D68>0,"F","") ->  | B68: REVESTIMENTO DE PAREDE | D68: =Orçamento!W496 -> 0 | E68: =Orçamento!Z496 -> 0 | F68: =ROUND(F70*$D$68,2) -> 0 | J68: =ROUND(J70*$D$68,2) -> 0 | N68: =SUM(F68:M68) -> 0 | Q68: 0 | R68: 0 | S68: 0 | T68: =IF(S68=N68,"OK","ERRO") -> OK
A69: =IF(A68="F",A68,"") ->  | S69: 0
A70: =IF(A69="F",A69,"") ->  | F70: 0.32 | J70: =1-F70 -> 0.68 | N70: =IFERROR(E68/100,"") -> 0 | S70: 0
A71: =IF(D71>0,"F","") ->  | B71: FORROS | D71: =Orçamento!W497 -> 0 | E71: =Orçamento!Z497 -> 0 | F71: =ROUND(F73*$D$71,2) -> 0 | J71: =ROUND(J73*$D$71,2) -> 0 | N71: =SUM(F71:M71) -> 0 | Q71: 0 | R71: 0 | S71: 0 | T71: OK
A72: =IF(A71="F",A71,"") ->  | S72: 0
A73: =IF(A72="F",A72,"") ->  | F73: 0.24 | J73: =1-F73 -> 0.76 | N73: =IFERROR(E71/100,"") -> 0 | S73: 0
A74: =IF(D74>0,"F","") ->  | B74: REVESTIMENTO DE PISO | D74: =Orçamento!W498 -> 0 | E74: =Orçamento!Z498 -> 0 | F74: =ROUND(F76*$D$74,2) -> 0 | J74: =ROUND(J76*$D$74,2) -> 0 | N74: =SUM(F74:M74) -> 0 | Q74: 0 | R74: 0 | S74: 0 | T74: =IF(S74=N74,"OK","ERRO") -> OK
A75: =IF(A74="F",A74,"") ->  | S75: 0
A76: =IF(A75="F",A75,"") ->  | F76: 0.49 | J76: =1-F76 -> 0.51 | N76: =IFERROR(E74/100,"") -> 0 | S76: 0
A77: =IF(D77>0,"F","") ->  | B77: FERRAGENS | D77: =Orçamento!W499 -> 0 | E77: =Orçamento!Z499 -> 0 | F77: =ROUND(F79*$D$77,2) -> 0 | J77: =ROUND(J79*$D$77,2) -> 0 | N77: =SUM(F77:M77) -> 0 | Q77: 0 | R77: 0 | S77: 0 | T77: OK
A78: =IF(A77="F",A77,"") ->  | S78: 0
A79: =IF(A78="F",A78,"") ->  | F79: 0 | J79: =1-F79 -> 1 | N79: =IFERROR(E77/100,"") -> 0 | S79: =Q79+R79 -> 0
A80: =IF(D80>0,"F","") ->  | B80: MARCENARIA | D80: =Orçamento!W500 -> 0 | E80: =Orçamento!Z500 -> 0 | F80: =ROUND(F82*$D$80,2) -> 0 | J80: =ROUND(J82*$D$80,2) -> 0 | N80: =SUM(F80:M80) -> 0 | Q80: =F80 -> 0 | R80: =J80 -> 0 | S80: 0 | T80: =IF(S80=N80,"OK","ERRO") -> OK
A81: =IF(A80="F",A80,"") ->  | S81: 0
A82: =IF(A81="F",A81,"") ->  | F82: 0.4 | J82: =1-F82 -> 0.6 | N82: =IFERROR(E80/100,"") -> 0 | S82: 0
A83: =IF(D83>0,"F","") ->  | B83: ADMINISTRAÇÃO - MENSALISTAS | D83: =Orçamento!W501 -> 0 | E83: =Orçamento!Z501 -> 0 | F83: =ROUND(F85*$D$83,2) -> 0 | J83: =ROUND(J85*$D$83,2) -> 0 | N83: =SUM(F83:M83) -> 0 | Q83: 0 | R83: 0 | S83: 0 | T83: =IF(S83=N83,"OK","ERRO") -> OK
A84: =IF(A83="F",A83,"") ->  | S84: 0
A85: =IF(A84="F",A84,"") ->  | F85: 0.49 | J85: =1-F85 -> 0.51 | N85: =IFERROR(E83/100,"") -> 0 | S85: 0
A86: =IF(D86>0,"F","") ->  | B86: PINTURA | D86: =Orçamento!W502 -> 0 | E86: =Orçamento!Z502 -> 0 | F86: =ROUND(F88*$D$86,2) -> 0 | J86: =ROUND(J88*$D$86,2) -> 0 | N86: =SUM(F86:M86) -> 0 | Q86: 0 | R86: 0 | S86: 0 | T86: =IF(S86=N86,"OK","ERRO") -> OK
A87: =IF(A86="F",A86,"") ->  | S87: 0
A88: =IF(A87="F",A87,"") ->  | F88: 0 | J88: =1-F88 -> 1 | N88: =IFERROR(E86/100,"") -> 0 | S88: 0
A89: =IF(D89>0,"F","") ->  | B89: DIVERSOS | D89: =Orçamento!W503 -> 0 | E89: =Orçamento!Z503 -> 0 | F89: =ROUND(F91*$D$89,2) -> 0 | J89: =ROUND(J91*$D$89,2) -> 0 | N89: =SUM(F89:M89) -> 0 | Q89: 0 | R89: 0 | S89: 0 | T89: OK
A90: =IF(A89="F",A89,"") ->  | S90: 0 | T90: =IF(S90=N90,"OK","ERRO") -> OK
A91: =IF(A90="F",A90,"") ->  | F91: 0.46 | J91: =1-F91 -> 0.54 | N91: =IFERROR(E89/100,"") -> 0 | S91: 0
A92: F | B92: CUSTO DO ORÇAMENTO | D92: =SUM(D14:D91) -> 0 | E92: =SUM(E14:E91) -> 0 | F92: =F14+F17+F20+F23+F26+F29+F32+F35+F38+F41+F44+F47+F50+F53+F56+F59+F62+F65+F68+F71+F74+F77+F80+F83+F86+F89 -> 0 | J92: =J14+J17+J20+J23+J26+J29+J32+J35+J38+J41+J44+J47+J50+J53+J56+J59+J62+J65+J68+J71+J74+J77+J80+J83+J86+J89 -> 0 | N92: =N14+N17+N20+N23+N26+N29+N32+N35+N38+N41+N44+N47+N50+N53+N56+N59+N62+N65+N68+N71+N74+N77+N80+N83+N86+N89 -> 0 | Q92: =SUM(Q14:Q91) -> 0 | R92: =SUM(R14:R91) -> 0 | S92: =SUM(S14:S91) -> 0
A93: F | B93: PERCENTUAIS: | F93: =IFERROR(F92/D92,"") ->  | J93: =IFERROR(J92/D92,"") ->  | N93: =SUM(F93:M93) -> 0 | S93: =R92+Q92 -> 0
A94: F | B94: TOTAIS ACUMULADOS: | F94: =F92 -> 0 | J94: =F94+J92 -> 0 | Q94: =IF(Q92=F92,"OK","erro") -> OK | R94: =IF(R92=J92,"OK","erro") -> OK | S94: =IF(S92=N92,"OK","erro") -> OK
A95: F | B95: PERCENTUAIS ACUMULADOS: | F95: =F93 ->  | J95: =IFERROR(F95+J93,"") -> 
A96: F
A97: F | B97: OBSERVAÇÕES:
A98: F | B98: Os pagamentos somente poderão ser efetuados mediante medição e atesto pelos técnicos da Secretaria da Educação.

Sheet Composição BDI
C2: UNIDADE ESCOLAR
C3: =Orçamento!$O$4 -> COLÉGIO ESTADUAL SÃO GERALDO
C5: OBRA
C6: =Orçamento!$O$7 -> AMPLIAÇÃO E REFORMA
C8: ENDEREÇO
C9: =Orçamento!$R$10 -> RUA 1 S/N, VILA LEO LYNCE, CEP:75370-000
C11: CIDADE
C12: =Orçamento!$W$7 -> GOIANIRA
C14: CRECE
C15: =Orçamento!$O$10 -> INHUMAS
A17: DETALHAMENTO DA COMPOSIÇÃO DE BDI
A18: COMPOSIÇÃO BDI PARA OBRAS CIVIS | F18: BDI CONSTRUÇÃO E REFORMA
A19: DESCRIÇÃO | B19: COEF. | C19: TAXA % (a.m) | D19: % no preço de venda | F19: Situação | G19: 1º Quartil | H19: Médio | I19: 3º Quartil
A20: 1) COFINS | B20: 1 | C20: 0.03 | D20: =C20 -> 0.03 | F20: =IF(OR(C20<G20,C20>I20),"FORA DO INTERVALO","OK") -> OK | G20: 0.03 | H20: 0.03 | I20: 0.03
A21: 2) PIS | B21: 1 | C21: 0.0065 | D21: =C21 -> 0.0065 | F21: =IF(OR(C21<G21,C21>I21),"FORA DO INTERVALO","OK") -> OK | G21: 0.0065 | H21: 0.0065 | I21: 0.0065
A22: 3) ISSQN | B22: 1 | C22: 0.05 | D22: =C22*B22 -> 0.05 | F22: OK | G22: 0.02 | H22: 0.035 | I22: 0.05
A23: 4) CPRB | B23: 1 | C23: 0 | D23: =C23 -> 0 | F23: FORA DO INTERVALO | G23: 0.045 | H23: 0.045 | I23: 0.045
A24: 5) Administração Central | B24: 1 | C24: 0.03 | D24: 0.03 | F24: OK | G24: 0.03 | H24: 0.04 | I24: 0.055
A25: 6) Despesas Financeiras | B25: 1 | C25: 0.0056 | D25: 0.0056 | F25: FORA DO INTERVALO | G25: 0.0059 | H25: 0.0123 | I25: 0.0139
A26: 7) Seguros + Garantias | B26: 1 | C26: 0.0012 | D26: 0.0012 | F26: FORA DO INTERVALO | G26: 0.008 | H26: 0.008 | I26: 0.01
A27: 8) Risco | B27: 1 | C27: 0.0097 | D27: 0.0097 | F27: OK | G27: 0.0097 | H27: 0.0127 | I27: 0.0127
A28: 9) Lucro | B28: 1 | C28: 0.0616 | D28: 0.0616 | F28: OK | G28: 0.0616 | H28: 0.074 | I28: 0.0896
A29: BDI - FINAL | D29: =(((1+D24+D26+D27)*(1+D25)*(1+D28))/(1-(D20+D21+D22+D23))-1) -> 0.2164286249 | F29: FORA DO INTERVALO | G29: 0.2034 | H29: 0.2212 | I29: 0.25
A31: Notas:
A32: (1) e (2) Alíquota definida por lei.
A33: (3) Alíquota e base de cálculo definidas pela legislação municipal.
A34: (4) Alíquota definida pelas leis 12.546/11, 12844/13 e 13.161/15 (CPRB – contribuição previdenciária sobre a receita bruta).
A35: (5) Valores definidos a partir dos limites no Acórdão nº 2.622/2013 - TCU – Plenário. Valores entre o 1º e 3º quartis.
A36: (6) Valor calculado pela expressão matemática do acórdão 2.369/2011 – TCU – Plenário e disponibilizado pela AGETOP em dezembro de 2018. (Foi utilizado para o cálculo a média da Taxa SELIC no período de 11/2017 a 10/2018)
A38: (7) Valores definidos pela AGETOP a partir dos limites no Acórdão nº 2.622/2013 - TCU – Plenário. Valores médios. Observação da AGETOP: (Seguros contra erros de execução, incêndio e explosão, danos da natureza (vendaval, destelhamento, alagamento, inundação, desmoronamento, geadas etc.), emprego de material defeituoso ou inadequado, roubo e/ou furto qualificado, quebra de equipamentos, desmoronamento de estrutura, nas modalidades de Obras Civis em Construção (OCC); Instalação e Montagem (IM); e Obras Civis em Construção e Instalação e Montagem (OCC/IM). Bem como coberturas adicionais para ampliação dessas coberturas básicas, como: cobertura de responsabilidade civil geral, cobertura de responsabilidade civil cruzada, cobertura de despesas extraordinárias, cobertura de tumultos, cobertura de desentulho do local, cobertura de riscos do fabricante, dentre outras, incluindo o seguro de vida em grupo regido pela convenção coletiva dos trabalhadores na indústria da construção civil). A partir de 24/02/2015 por intermédio da Portaria 449/2015 a Presidência da AGETOP, na pessoa do Senhor Jayme Eduardo Rincon, determinou a exclusão dos valores referentes aos Seguros de Risco de Engenharia e Responsabilidade Civil do Profissional na composição do cálculo do B.D.I..
A39: (8) Valores definidos a partir dos limites no Acórdão nº 2.622/2013 - TCU – Plenário. Valores entre 1º e 3° quartis.
A40: (9) Valores definidos a partir dos limites definidos no Acórdão nº 2.622/2013 - TCU – Plenário. Valores adotados e praticados no mercado ( “ ex ante ” ) ou aqueles entre os 1º e 3º quartis.
A42: (*) A fórmula para estipulação da taxa de BDI estimado adotado é a mesma que foi aplicada para a obtenção das tabelas contidas no Acórdão n. 2.622/2013 – TCUPlenário
A44: Obs.: Para obras com valores superiores a R$ 20.000.000,00 sugere-se recalcular o BDI, dimensionando as taxas de administração central e lucro para patamares inferiores ao estipulado acima.

Sheet Relatório CENTRAL
B3: UNIDADE ESCOLAR | D3: CIDADE
B4: =Orçamento!$O$4 -> COLÉGIO ESTADUAL SÃO GERALDO | D4: =Orçamento!$W$7 -> GOIANIRA
B6: OBRA | D6: CRECE
B7: =Orçamento!$O$7 -> AMPLIAÇÃO E REFORMA | D7: =Orçamento!$O$10 -> INHUMAS
B9: ENDEREÇO | D9: DATA
A10: FILTRO | B10: =Orçamento!$R$10 -> RUA 1 S/N, VILA LEO LYNCE, CEP:75370-000 | D10: =Orçamento!$S$7 -> 2020-04-08
B12: RELATÓRIO CENTRAL
A13: ↓ | B13: CÓDIGO | C13: ETAPA | D13: PREÇO (R$) C/ BDI | E13: PARTIC ( % )
A14: =IF(D14>0,"F","") ->  | B14: =Orçamento!O478 -> a. | C14: =Orçamento!P478 -> SERVIÇOS PRELIMINARES | D14: =Orçamento!W478 -> 0 | E14: =Orçamento!Z478 -> 0
A15: =IF(D15>0,"F","") ->  | B15: =Orçamento!O479 -> b. | C15: =Orçamento!P479 -> TRANSPORTES | D15: =Orçamento!W479 -> 0 | E15: =Orçamento!Z479 -> 0
B16: =Orçamento!O480 -> c. | C16: =Orçamento!P480 -> SERVIÇO EM TERRA | D16: =Orçamento!W480 -> 0 | E16: =Orçamento!Z480 -> 0
B17: =Orçamento!O481 -> d. | C17: =Orçamento!P481 -> FUNDAÇÕES E SONDAGENS | D17: =Orçamento!W481 -> 0 | E17: =Orçamento!Z481 -> 0
B18: =Orçamento!O482 -> e. | C18: =Orçamento!P482 -> ESTRUTURA | D18: =Orçamento!W482 -> 0 | E18: =Orçamento!Z482 -> 0
B19: =Orçamento!O483 -> f. | C19: =Orçamento!P483 -> INSTALAÇÕES ELÉTRICAS | D19: =Orçamento!W483 -> 0 | E19: =Orçamento!Z483 -> 0
B20: =Orçamento!O484 -> g. | C20: =Orçamento!P484 -> INSTALAÇÕES HIDROSSANITÁRIAS | D20: =Orçamento!W484 -> 0 | E20: =Orçamento!Z484 -> 0
B21: =Orçamento!O485 -> h | C21: =Orçamento!P485 -> INSTALAÇÕES ESPECIAIS | D21: =Orçamento!W485 -> 0 | E21: =Orçamento!Z485 -> 0
B22: =Orçamento!O486 -> i. | C22: =Orçamento!P486 -> ALVENARIAS E DIVISÓRIAS | D22: =Orçamento!W486 -> 0 | E22: =Orçamento!Z486 -> 0
B23: =Orçamento!O487 -> j. | C23: =Orçamento!P487 -> ALVENARIA AUTO-PORTANTE | D23: =Orçamento!W487 -> 0 | E23: =Orçamento!Z487 -> 0
B24: =Orçamento!O488 -> k. | C24: =Orçamento!P488 -> IMPERMEABILIZACAO | D24: =Orçamento!W488 -> 0 | E24: =Orçamento!Z488 -> 0
B25: =Orçamento!O489 -> l. | C25: =Orçamento!P489 -> ISOLAMENTO TÉRMICO E ACÚSTICO | D25: =Orçamento!W489 -> 0 | E25: =Orçamento!Z489 -> 0
B26: =Orçamento!O490 -> m. | C26: =Orçamento!P490 -> ESTRUTURA DE MADEIRA | D26: =Orçamento!W490 -> 0 | E26: =Orçamento!Z490 -> 0
B27: =Orçamento!O491 -> n. | C27: =Orçamento!P491 -> ESTRUTURAS METÁLICAS | D27: =Orçamento!W491 -> 0 | E27: =Orçamento!Z491 -> 0
B28: =Orçamento!O492 -> o. | C28: =Orçamento!P492 -> COBERTURAS | D28: =Orçamento!W492 -> 0 | E28: =Orçamento!Z492 -> 0
B29: =Orçamento!O493 -> p. | C29: =Orçamento!P493 -> ESQUADRIAS DE MADEIRA | D29: =Orçamento!W493 -> 0 | E29: =Orçamento!Z493 -> 0
B30: =Orçamento!O494 -> q. | C30: =Orçamento!P494 -> ESQUADRIAS METÁLICAS | D30: =Orçamento!W494 -> 0 | E30: =Orçamento!Z494 -> 0
B31: =Orçamento!O495 -> r. | C31: =Orçamento!P495 -> VIDROS | D31: =Orçamento!W495 -> 0 | E31: =Orçamento!Z495 -> 0
B32: =Orçamento!O496 -> s. | C32: =Orçamento!P496 -> REVESTIMENTO DE PAREDE | D32: =Orçamento!W496 -> 0 | E32: =Orçamento!Z496 -> 0
B33: =Orçamento!O497 -> t. | C33: =Orçamento!P497 -> FORROS | D33: =Orçamento!W497 -> 0 | E33: =Orçamento!Z497 -> 0
B34: =Orçamento!O498 -> u. | C34: =Orçamento!P498 -> REVESTIMENTO DE PISO | D34: =Orçamento!W498 -> 0 | E34: =Orçamento!Z498 -> 0
B35: =Orçamento!O499 -> v. | C35: =Orçamento!P499 -> FERRAGENS | D35: =Orçamento!W499 -> 0 | E35: =Orçamento!Z499 -> 0
B36: =Orçamento!O500 -> w. | C36: =Orçamento!P500 -> MARCENARIA | D36: =Orçamento!W500 -> 0 | E36: =Orçamento!Z500 -> 0
B37: =Orçamento!O501 -> x. | C37: =Orçamento!P501 -> ADMINISTRAÇÃO | D37: =Orçamento!W501 -> 0 | E37: =Orçamento!Z501 -> 0
B38: =Orçamento!O502 -> y. | C38: =Orçamento!P502 -> PINTURA | D38: =Orçamento!W502 -> 0 | E38: =Orçamento!Z502 -> 0
B39: =Orçamento!O503 -> z. | C39: =Orçamento!P503 -> DIVERSOS | D39: =Orçamento!W503 -> 0 | E39: =Orçamento!Z503 -> 0
A40: F | B40: TOTAL GERAL DO ORÇAMENTO (R$) C/BDI | D40: =SUM(D14:D39) -> 0 | E40: =SUM(E14:E39) -> 0

Sheet Parc Maior Relev
B3: UNIDADE ESCOLAR | E3: CÓDIGO INEP
B4: =Orçamento!$O$4 -> COLÉGIO ESTADUAL SÃO GERALDO | E4: =Orçamento!$W$4 -> 52038343
B6: OBRA | E6: CIDADE
B7: =Orçamento!$O$7 -> AMPLIAÇÃO E REFORMA | E7: =Orçamento!$W$7 -> GOIANIRA
B9: CRECE | E9: ÁREA TOTAL CONSTRUÍDA (M²)
B10: =Orçamento!$O$10 -> INHUMAS | E10: =Orçamento!$S$13 -> 2504.21
A11: FILTRO
B12: PARCELA DE MAIOR RELEVÂNCIA
B13: CÓDIGO | C13: SERVIÇO | D13: DESCRIÇÃO | E13: UNID | F13: QUANT | G13: PARC. MAIOR RELEVÂNCIA (25%)
A14: =IF(F14>0,"F","") -> F | B14: n. | C14: =IFERROR(VLOOKUP(B14,Orçamento!$O$478:$P$503,2,FALSE),"(inserir código ao lado)") -> ESTRUTURAS METÁLICAS | D14: ESTRUTURA METÁLICA CONVENCIONAL EM AÇO DO TIPO USI SAC-300 COM FUNDO ANTICORROSIVO | E14: =IFERROR(VLOOKUP($D14,Orçamento!$R$20:$Y$459,2,FALSE),"-") -> Kg | F14: 9636.9 | G14: =F14*0.25 -> 2409.225
A15: =IF(F15>0,"F","") -> F | B15: u. | C15: =IFERROR(VLOOKUP(B15,Orçamento!$O$478:$P$503,2,FALSE),"(inserir código ao lado)") -> REVESTIMENTO DE PISO | D15: =Orçamento!R277 -> PISO EM GRANILITE, MARMORITE OU GRANITINA ESPESSURA 8 MM, INCLUSO JUNTAS DE DILATACAO PLASTICAS | E15: =Orçamento!S277 -> M2 | F15: =Orçamento!U277 -> 561.9 | G15: =F15*0.25 -> 140.475
A16: =IF(F16>0,"F","") -> F | B16: =Somatório!B21 -> e. | C16: =IFERROR(VLOOKUP(B16,Orçamento!$O$478:$P$503,2,FALSE),"(inserir código ao lado)") -> ESTRUTURA | D16: =Orçamento!R223 -> LAJE PRE-MOLDADA P/FORRO, SOBRECARGA 100KG/M2, VAOS ATE 3,50M/E=8CM, C/LAJOTAS E CAP.C/CONC FCK=20MPA, 3CM, INTER-EIXO 38CM, C/ESCORAMENTO (REAPR.3X) E FERRAGEM NEGATIVA | E16: =IFERROR(VLOOKUP($D16,Orçamento!$R$20:$Y$459,2,FALSE),"-") -> M2 | F16: =Orçamento!U223 -> 468.84 | G16: 117.21
A17: F | B17: o. | C17: =IFERROR(VLOOKUP(B17,Orçamento!$O$478:$P$503,2,FALSE),"(inserir código ao lado)") -> COBERTURAS | D17: =Orçamento!R259 -> TELHAMENTO COM TELHA CERÂMICA CAPA-CANAL, TIPO PLAN, COM ATÉ 2 ÁGUAS, INCLUSO TRANSPORTE VERTICAL. AF_06/2016 | E17: =IFERROR(VLOOKUP($D17,Orçamento!$R$20:$Y$459,2,FALSE),"-") -> M2 | F17: =Orçamento!U259 -> 707.07 | G17: 176.7675
C18: =IFERROR(VLOOKUP(B18,Orçamento!$O$478:$P$503,2,FALSE),"(inserir código ao lado)") -> (inserir código ao lado) | E18: =IFERROR(VLOOKUP($D18,Orçamento!$R$20:$Y$459,2,FALSE),"-") -> - | F18: =SUMIF(Orçamento!$R$20:$R$459,'Parc Maior Relev'!D18,Orçamento!$T$20:$T$459) -> 0 | G18: =F18*0.5 -> 0
A19: F
A20: F | B20: (*) Para os fins do inciso I dp § 1º do Art. 30 da Lei Federal 8.666/93, são consideradas parcelas de maior relevância técnica as execuções apresentadas
A21: F

Sheet Composições
A4: UNIDADE ESCOLAR | H4: CÓDIGO INEP
A5: =Orçamento!$O$4 -> COLÉGIO ESTADUAL SÃO GERALDO | H5: =Orçamento!$W$4 -> 52038343
A7: OBRA | H7: CIDADE
A8: =Orçamento!$O$7 -> AMPLIAÇÃO E REFORMA | H8: =Orçamento!$W$7 -> GOIANIRA
A10: CRECE | D10: ENDEREÇO | H10: REFERÊNCIA AGETOP
A11: =Orçamento!$O$10 -> INHUMAS | D11: =Orçamento!$R$10 -> RUA 1 S/N, VILA LEO LYNCE, CEP:75370-000 | H11: =Orçamento!$W$10 -> DEZ/18 | I11: =Orçamento!$Y$10 -> NÃO DESONERADA
A13: DATA | D13: ÁREA TOTAL CONSTRUÍDA (M²) | H13: REFERÊNCIA SINAPI
A14: =Orçamento!$S$7 -> 2020-04-08 | D14: =Orçamento!$S$13 -> 2504.21 | H14: =Orçamento!$W$13 -> JAN/19 | I14: =Orçamento!$Y$13 -> NÃO DESONERADA
A16: COMPOSIÇÕES DE CUSTOS UNITÁRIOS - SEE-GO
A17: 24 | B17: FONTE | C17: CÓDIGO | D17: DESCRIÇÃO | E17: UNIDADE | F17: COEFIC. | G17: CUSTO UNITÁRIO | I17: CUSTO TOTAL (A) + (B) + (C) + (D) + (E)
G18: DESONERADO | H18: NÃO DESONER. | I18: DESONERADO | J18: NÃO DESONER.
B19: COMPOSIÇÃO | C19: COMP 024_SEE | D19: SINALIZADOR FOTOLUMINESCENTE PARA EXTINTOR | E19: UN | G19: - | H19: - | I19: 25.27 | J19: 25.39
B20: AGETOP_I | C20: 5 | D20: SERVENTE | E20: h | F20: 0.09 | G20: 8.2 | H20: 9.51 | I20: 0.74 | J20: 0.86
G21: 0 | H21: 0 | I21: 0 | J21: 0
G22: 0 | H22: 0 | I22: 0 | J22: 0
B23: MÃO DE OBRA (B) - TOTAL | I23: 0.74 | J23: 0.86
B24: AGETOP_I | C24: 3070 | D24: BUCHA DE NYLON S-6 | E24: un | F24: 2 | G24: 0.04 | H24: 0.04 | I24: 0.08 | J24: 0.08
B25: AGETOP_I | C25: 3393 | D25: PARAFUSO P/BUCHA S-6 | E25: un | F25: 2 | G25: 0.08 | H25: 0.08 | I25: 0.16 | J25: 0.16
B26: SINAPI_I | C26: 37556 | D26: PLACA DE SINALIZACAO DE SEGURANCA CONTRA INCENDIO, FOTOLUMINESCENTE, QUADRADA, *20 X 20* CM, EM PVC *2* MM ANTI-CHAMAS (SIMBOLOS, CORES E PICTOGRAMAS CONFORME NBR 13434) | E26: UN | F26: 1 | G26: 24.29 | H26: 24.29 | I26: 24.29 | J26: 24.29
B27: MATERIAL (C) - TOTAL | I27: 24.53 | J27: 24.53
A29: 25 | B29: FONTE | C29: CÓDIGO | D29: DESCRIÇÃO | E29: UNIDADE | F29: COEFIC. | G29: CUSTO UNITÁRIO | I29: CUSTO TOTAL (A) + (B) + (C) + (D) + (E)
G30: DESONERADO | H30: NÃO DESONER. | I30: DESONERADO | J30: NÃO DESONER.
B31: COMPOSIÇÃO | C31: COMP 025_SEE | D31: SINALIZADOR FOTOLUMINESCENTE DE EMERGÊNCIA | E31: UN | G31: - | H31: - | I31: 25.27 | J31: 25.39
B32: AGETOP_I | C32: 5 | D32: SERVENTE | E32: h | F32: 0.09 | G32: 8.2 | H32: 9.51 | I32: 0.74 | J32: 0.86
B33: MÃO DE OBRA (B) - TOTAL | I33: 0.74 | J33: 0.86
B34: AGETOP_I | C34: 3070 | D34: BUCHA DE NYLON S-6 | E34: un | F34: 2 | G34: 0.04 | H34: 0.04 | I34: 0.08 | J34: 0.08
B35: AGETOP_I | C35: 3393 | D35: PARAFUSO P/BUCHA S-6 | E35: un | F35: 2 | G35: 0.08 | H35: 0.08 | I35: 0.16 | J35: 0.16
B36: SINAPI_I | C36: 37556 | D36: PLACA DE SINALIZACAO DE SEGURANCA CONTRA INCENDIO, FOTOLUMINESCENTE, QUADRADA, *20 X 20* CM, EM PVC *2* MM ANTI-CHAMAS (SIMBOLOS, CORES E PICTOGRAMAS CONFORME NBR 13434) | E36: UN | F36: 1 | G36: 24.29 | H36: 24.29 | I36: 24.29 | J36: 24.29
B37: MATERIAL (C) - TOTAL | I37: 24.53 | J37: 24.53
A39: 84 | B39: FONTE | C39: CÓDIGO | D39: DESCRIÇÃO | E39: UNIDADE | F39: COEFIC. | G39: CUSTO UNITÁRIO | I39: CUSTO TOTAL (A) + (B) + (C) + (D) + (E)
G40: DESONERADO | H40: NÃO DESONER. | I40: DESONERADO | J40: NÃO DESONER.
B41: COMPOSIÇÃO | C41: COMP 084_SEE | D41: GUARDA-CORPO COM CORRIMÃO - SEDUC | E41: M | I41: 204.6 | J41: 209.46
B42: AGETOP_I | C42: 25 | D42: OFICIAL "B" | E42: h | F42: 1.1 | G42: 13.4 | H42: 15.53 | I42: 14.74 | J42: 17.08
B43: AGETOP_I | C43: 8 | D43: AJUDANTE | E43: h | F43: 1.1 | G43: 8.2 | H43: 9.51 | I43: 9.02 | J43: 10.46
G44: 0 | H44: 0 | I44: 0 | J44: 0
B45: MÃO DE OBRA (B) - TOTAL | I45: 23.76 | J45: 27.54
B46: AGETOP_I | C46: 2376 | D46: TUBO INDUSTRIAL 2" CHAPA 13 | E46: Kg | F46: 7.7778 | G46: 5.23 | H46: 5.23 | I46: 40.68 | J46: 40.68
B47: AGETOP_I | C47: 2504 | D47: TUBO INDUSTRIAL D=25 MM CHAPA 13 | E47: Kg | F47: 4.632 | G47: 5.07 | H47: 5.07 | I47: 23.48 | J47: 23.48
B48: AGETOP_I | C48: 2377 | D48: TUBO INDUSTRIAL 40X40 CH.13 | E48: Kg | F48: 6.342 | G48: 5.07 | H48: 5.07 | I48: 32.15 | J48: 32.15
B49: AGETOP_I | C49: 2421 | D49: TUBO INDUSTRIAL 1.1/2" CHAPA 13 | E49: Kg | F49: 1.4862 | G49: 5.07 | H49: 5.07 | I49: 7.54 | J49: 7.54
B50: AGETOP_I | C50: 2417 | D50: MASSA PLASTICA | E50: Kg | F50: 0.2041 | G50: 10.58 | H50: 10.58 | I50: 2.16 | J50: 2.16
B51: AGETOP_I | C51: 2246 | D51: ELETRODO 2.5 OK | E51: Kg | F51: 0.1146 | G51: 8.7 | H51: 8.7 | I51: 1 | J51: 1
B52: AGETOP_I | C52: 1672 | D52: LIXA PARA FERRO ( NÚMERO 100 ) | E52: un | F52: 0.2551 | G52: 2.12 | H52: 2.12 | I52: 0.54 | J52: 0.54
B53: AGETOP_I | C53: 1264 | D53: DISCO DE DESBASTE 7/8" P/ CONC./FERRO (1/4" X 7") | E53: un | F53: 0.051 | G53: 7 | H53: 7 | I53: 0.36 | J53: 0.36
B54: AGETOP_I | C54: 1334 | D54: DISCO DE CORTE DIAM. 5/8"- 10" | E54: un | F54: 0.373 | G54: 5.5 | H54: 5.5 | I54: 2.05 | J54: 2.05
B55: AGETOP_I | C55: 2902 | D55: FABRICAÇÃO / MONTAGEM | E55: un | F55: 1 | G55: 50.44 | H55: 50.44 | I55: 50.44 | J55: 50.44
B56: AGETOP_I | C56: 2150 | D56: CHAPA DE FERRO DOBRADA No.13 | E56: Kg | F56: 0.4352 | G56: 5.28 | H56: 5.28 | I56: 2.3 | J56: 2.3
B57: AGETOP_I | C57: 2719 | D57: CHAPA PERFILADA 3/16" | E57: Kg | F57: 1.098 | G57: 5.04 | H57: 5.04 | I57: 5.53 | J57: 5.53
B58: AGETOP_I | C58: 2436 | D58: ACO CA-25 - 6,3 MM (1/4") - BARRA LISA A-36 | E58: Kg | F58: 0.38125 | G58: 5.13 | H58: 5.13 | I58: 1.96 | J58: 1.96
B59: AGETOP | C59: 261602 | D59: PINT.ESMALTE/ESQUAD.FERRO C/FUNDO ANTICOR. | E59: m2 | F59: 0.78 | G59: 13.65 | H59: 15.04 | I59: 10.65 | J59: 11.73
B60: MATERIAL (C) - TOTAL | I60: 180.84 | J60: 181.92
A62: 382 | B62: FONTE | C62: CÓDIGO | D62: DESCRIÇÃO | E62: UNIDADE | F62: COEFIC. | G62: CUSTO UNITÁRIO | I62: CUSTO TOTAL (A) + (B) + (C) + (D) + (E)
G63: DESONERADO | H63: NÃO DESONER. | I63: DESONERADO | J63: NÃO DESONER.
B64: COMPOSIÇÃO | C64: COMP 382_SEE | D64: TE DE REDUCAO DE FERRO GALVANIZADO, COM ROSCA BSP, DE 3/4" X 1/2" | E64: UN | I64: 21.55 | J64: 23.64
B65: AGETOP_I | C65: 8 | D65: AJUDANTE | E65: h | F65: 0.6 | G65: 8.2 | H65: 9.51 | I65: 4.92 | J65: 5.71
B66: AGETOP_I | C66: 11 | D66: ENCANADOR | E66: h | F66: 0.6105 | G66: 13.4 | H66: 15.53 | I66: 8.18 | J66: 9.48
G67: 0 | H67: 0 | I67: 0 | J67: 0
B68: MÃO DE OBRA (B) - TOTAL | I68: 13.1 | J68: 15.19
B69: SINAPI_I | C69: 3146 | D69: FITA VEDA ROSCA EM ROLOS DE 18 MM X 10 M (L X C) | E69: UN | F69: 0.120754717 | G69: 3.48 | H69: 3.48 | I69: 0.42 | J69: 0.42
B70: SINAPI_I | C70: 6302 | D70: TE DE REDUCAO DE FERRO GALVANIZADO, COM ROSCA BSP, DE 3/4" X 1/2" | E70: UN | F70: 1 | G70: 8.03 | H70: 8.03 | I70: 8.03 | J70: 8.03
G71: 0 | H71: 0 | I71: 0 | J71: 0
B72: MATERIAL (C) - TOTAL | I72: 8.45 | J72: 8.45
A74: 383 | B74: FONTE | C74: CÓDIGO | D74: DESCRIÇÃO | E74: UNIDADE | F74: COEFIC. | G74: CUSTO UNITÁRIO | I74: CUSTO TOTAL (A) + (B) + (C) + (D) + (E)
G75: DESONERADO | H75: NÃO DESONER. | I75: DESONERADO | J75: NÃO DESONER.
B76: COMPOSIÇÃO | C76: COMP 383_SEE | D76: BUCHA DE REDUCAO DE FERRO GALVANIZADO, COM ROSCA BSP, DE 1/2" X 1/4" | E76: UN | I76: 6.75 | J76: 7.3
B77: AGETOP_I | C77: 8 | D77: AJUDANTE | E77: h | F77: 0.16 | G77: 8.2 | H77: 9.51 | I77: 1.31 | J77: 1.52
B78: AGETOP_I | C78: 11 | D78: ENCANADOR | E78: h | F78: 0.16 | G78: 13.4 | H78: 15.53 | I78: 2.14 | J78: 2.48
G79: 0 | H79: 0 | I79: 0 | J79: 0
B80: MÃO DE OBRA (B) - TOTAL | I80: 3.45 | J80: 4
B81: AGETOP_I | C81: H689 | D81: FITA VEDAROSCA 12 MM | E81: m | F81: 1.2 | G81: 0.28 | H81: 0.28 | I81: 0.34 | J81: 0.34
B82: SINAPI_I | C82: 770 | D82: BUCHA DE REDUCAO DE FERRO GALVANIZADO, COM ROSCA BSP, DE 1/2" X 1/4" | E82: UN | F82: 1 | G82: 2.96 | H82: 2.96 | I82: 2.96 | J82: 2.96
G83: 0 | H83: 0 | I83: 0 | J83: 0
B84: MATERIAL (C) - TOTAL | I84: 3.3 | J84: 3.3
A86: 212 | B86: FONTE | C86: CÓDIGO | D86: DESCRIÇÃO | E86: UNIDADE | F86: COEFIC. | G86: CUSTO UNITÁRIO | I86: CUSTO TOTAL (A) + (B) + (C) + (D) + (E)
G87: DESONERADO | H87: NÃO DESONER. | I87: DESONERADO | J87: NÃO DESONER.
B88: COMPOSIÇÃO | C88: COMP 212_SEE | D88: NIPLE DE REDUÇÃO 1/2" X 1/4" BSP | E88: UN | I88: 9.5 | J88: 10.05
B89: AGETOP_I | C89: 8 | D89: AJUDANTE | E89: h | F89: 0.16 | G89: 8.2 | H89: 9.51 | I89: 1.31 | J89: 1.52
B90: AGETOP_I | C90: 11 | D90: ENCANADOR | E90: h | F90: 0.16 | G90: 13.4 | H90: 15.53 | I90: 2.14 | J90: 2.48
G91: 0 | H91: 0 | I91: 0 | J91: 0
B92: MÃO DE OBRA (B) - TOTAL | I92: 3.45 | J92: 4
B93: COTAÇÃO | C93: COT 103_SEE | D93: NIPLE DE REDUÇÃO 1/2" X 1/4" BSP | E93: UN | F93: 1 | G93: 6.053333333 | H93: 6.053333333 | I93: 6.05 | J93: 6.05
G94: 0 | H94: 0 | I94: 0 | J94: 0
G95: 0 | H95: 0 | I95: 0 | J95: 0
B96: MATERIAL (C) - TOTAL | I96: 6.05 | J96: 6.05
A98: 213 | B98: FONTE | C98: CÓDIGO | D98: DESCRIÇÃO | E98: UNIDADE | F98: COEFIC. | G98: CUSTO UNITÁRIO | I98: CUSTO TOTAL (A) + (B) + (C) + (D) + (E)
G99: DESONERADO | H99: NÃO DESONER. | I99: DESONERADO | J99: NÃO DESONER.
B100: COMPOSIÇÃO | C100: COMP 213_SEE | D100: NIPLE DE REDUÇÃO 3/4" X 1/2" BSP | E100: UN | I100: 13.16 | J100: 13.71
B101: AGETOP_I | C101: 8 | D101: AJUDANTE | E101: h | F101: 0.16 | G101: 8.2 | H101: 9.51 | I101: 1.31 | J101: 1.52
B102: AGETOP_I | C102: 11 | D102: ENCANADOR | E102: h | F102: 0.16 | G102: 13.4 | H102: 15.53 | I102: 2.14 | J102: 2.48
G103: 0 | H103: 0 | I103: 0 | J103: 0
B104: MÃO DE OBRA (B) - TOTAL | I104: 3.45 | J104: 4
B105: COTAÇÃO | C105: COT 104_SEE | D105: NIPLE DE REDUÇÃO 3/4" X 1/2" BSP | E105: UN | F105: 1 | G105: 9.71 | H105: 9.71 | I105: 9.71 | J105: 9.71
G106: 0 | H106: 0 | I106: 0 | J106: 0
G107: 0 | H107: 0 | I107: 0 | J107: 0
B108: MATERIAL (C) - TOTAL | I108: 9.71 | J108: 9.71
A110: 237 | B110: FONTE | C110: CÓDIGO | D110: DESCRIÇÃO | E110: UNIDADE | F110: COEFIC. | G110: CUSTO UNITÁRIO | I110: CUSTO TOTAL (A) + (B) + (C) + (D) + (E)
G111: DESONERADO | H111: NÃO DESONER. | I111: DESONERADO | J111: NÃO DESONER.
B112: COMPOSIÇÃO | C112: COMP 237_SEE | D112: FITA ANTICORROSIVA | E112: M | I112: 11.1 | J112: 11.79
B113: AGETOP_I | C113: 8 | D113: AJUDANTE | E113: h | F113: 0.2 | G113: 8.2 | H113: 9.51 | I113: 1.64 | J113: 1.9
B114: AGETOP_I | C114: 12 | D114: ELETRICISTA | E114: h | F114: 0.2 | G114: 13.4 | H114: 15.53 | I114: 2.68 | J114: 3.11
G115: 0 | H115: 0 | I115: 0 | J115: 0
B116: MÃO DE OBRA (B) - TOTAL | I116: 4.32 | J116: 5.01
B117: SINAPI_I | C117: 39634 | D117: FITA ADESIVA ANTICORROSIVA DE PVC FLEXIVEL, COR PRETA, PARA PROTECAO TUBULACAO, 50 MM X 30 M (L X C), E= *0,25* MM | E117: M | F117: 1 | G117: 6.78 | H117: 6.78 | I117: 6.78 | J117: 6.78
G118: 0 | H118: 0 | I118: 0 | J118: 0
G119: 0 | H119: 0 | I119: 0 | J119: 0
B120: MATERIAL (C) - TOTAL | I120: 6.78 | J120: 6.78
A122: 542 | B122: FONTE | C122: CÓDIGO | D122: DESCRIÇÃO | E122: UNIDADE | F122: COEFIC. | G122: CUSTO UNITÁRIO | I122: CUSTO TOTAL (A) + (B) + (C) + (D) + (E)
G123: DESONERADO | H123: NÃO DESONER. | I123: DESONERADO | J123: NÃO DESONER.
B124: COMPOSIÇÃO | C124: COMP 542_SEE | D124: VÁLVULA UGV 3/4" (S) LATÃO | E124: UN | I124: 25.17 | J124: 26.66
B125: AGETOP_I | C125: 8 | D125: AJUDANTE | E125: h | F125: 0.432 | G125: 8.2 | H125: 9.51 | I125: 3.54 | J125: 4.11
B126: AGETOP_I | C126: 11 | D126: ENCANADOR | E126: h | F126: 0.432 | G126: 13.4 | H126: 15.53 | I126: 5.79 | J126: 6.71
G127: 0 | H127: 0 | I127: 0 | J127: 0
B128: MÃO DE OBRA (B) - TOTAL | I128: 9.33 | J128: 10.82
B129: COTAÇÃO | C129: COT 281_SEE | D129: VÁLVULA UGV 3/4" (S) LATÃO | E129: UN | F129: 1 | G129: 15.83666667 | H129: 15.83666667 | I129: 15.84 | J129: 15.84
G130: 0 | H130: 0 | I130: 0 | J130: 0
G131: 0 | H131: 0 | I131: 0 | J131: 0
B132: MATERIAL (C) - TOTAL | I132: 15.84 | J132: 15.84
A134: 543 | B134: FONTE | C134: CÓDIGO | D134: DESCRIÇÃO | E134: UNIDADE | F134: COEFIC. | G134: CUSTO UNITÁRIO | I134: CUSTO TOTAL (A) + (B) + (C) + (D) + (E)
G135: DESONERADO | H135: NÃO DESONER. | I135: DESONERADO | J135: NÃO DESONER.
B136: COMPOSIÇÃO | C136: COMP 543_SEE | D136: VÁLVULA UGV 1/2" (S) LATÃO | E136: UN | I136: 24.5 | J136: 25.99
B137: AGETOP_I | C137: 8 | D137: AJUDANTE | E137: h | F137: 0.432 | G137: 8.2 | H137: 9.51 | I137: 3.54 | J137: 4.11
B138: AGETOP_I | C138: 11 | D138: ENCANADOR | E138: h | F138: 0.432 | G138: 13.4 | H138: 15.53 | I138: 5.79 | J138: 6.71
G139: 0 | H139: 0 | I139: 0 | J139: 0
B140: MÃO DE OBRA (B) - TOTAL | I140: 9.33 | J140: 10.82
B141: COTAÇÃO | C141: COT 282_SEE | D141: VÁLVULA UGV 1/2" (S) LATÃO | E141: UN | F141: 1 | G141: 15.16666667 | H141: 15.16666667 | I141: 15.17 | J141: 15.17
G142: 0 | H142: 0 | I142: 0 | J142: 0
G143: 0 | H143: 0 | I143: 0 | J143: 0
B144: MATERIAL (C) - TOTAL | I144: 15.17 | J144: 15.17
A146: 211 | B146: FONTE | C146: CÓDIGO | D146: DESCRIÇÃO | E146: UNIDADE | F146: COEFIC. | G146: CUSTO UNITÁRIO | I146: CUSTO TOTAL (A) + (B) + (C) + (D) + (E)
G147: DESONERADO | H147: NÃO DESONER. | I147: DESONERADO | J147: NÃO DESONER.
B148: COMPOSIÇÃO | C148: COMP 211_SEE | D148: REGULADOR DE 2º ESTÁGIO 5KG/H | E148: UN | I148: 85.46 | J148: 89.42
B149: AGETOP_I | C149: 8 | D149: AJUDANTE | E149: h | F149: 1.15 | G149: 8.2 | H149: 9.51 | I149: 9.43 | J149: 10.94
B150: AGETOP_I | C150: 11 | D150: ENCANADOR | E150: h | F150: 1.15 | G150: 13.4 | H150: 15.53 | I150: 15.41 | J150: 17.86
G151: 0 | H151: 0 | I151: 0 | J151: 0
B152: MÃO DE OBRA (B) - TOTAL | I152: 24.84 | J152: 28.8
B153: COTAÇÃO | C153: COT 102_SEE | D153: REGULADOR DE 2º ESTÁGIO 5KG/H | E153: UN | F153: 1 | G153: 59.83333333 | H153: 59.83333333 | I153: 59.83 | J153: 59.83
B154: AGETOP_I | C154: H689 | D154: FITA VEDAROSCA 12 MM | E154: m | F154: 2.82 | G154: 0.28 | H154: 0.28 | I154: 0.79 | J154: 0.79
G155: 0 | H155: 0 | I155: 0 | J155: 0
B156: MATERIAL (C) - TOTAL | I156: 60.62 | J156: 60.62
A158: 210 | B158: FONTE | C158: CÓDIGO | D158: DESCRIÇÃO | E158: UNIDADE | F158: COEFIC. | G158: CUSTO UNITÁRIO | I158: CUSTO TOTAL (A) + (B) + (C) + (D) + (E)
G159: DESONERADO | H159: NÃO DESONER. | I159: DESONERADO | J159: NÃO DESONER.
B160: COMPOSIÇÃO | C160: COMP 210_SEE | D160: REGULADOR DE 1º ESTÁGIO 60KG/H MODELO AP-40 COM MANÔMETRO | E160: UN | I160: 231.21 | J160: 235.17
B161: AGETOP_I | C161: 8 | D161: AJUDANTE | E161: h | F161: 1.15 | G161: 8.2 | H161: 9.51 | I161: 9.43 | J161: 10.94
B162: AGETOP_I | C162: 11 | D162: ENCANADOR | E162: h | F162: 1.15 | G162: 13.4 | H162: 15.53 | I162: 15.41 | J162: 17.86
G163: 0 | H163: 0 | I163: 0 | J163: 0
B164: MÃO DE OBRA (B) - TOTAL | I164: 24.84 | J164: 28.8
B165: COTAÇÃO | C165: COT 101_SEE | D165: REGULADOR DE 1º ESTÁGIO 60KG/H MODELO AP-40 COM MANÔMETRO | E165: UN | F165: 1 | G165: 205.5766667 | H165: 205.5766667 | I165: 205.58 | J165: 205.58
B166: AGETOP_I | C166: H689 | D166: FITA VEDAROSCA 12 MM | E166: m | F166: 2.82 | G166: 0.28 | H166: 0.28 | I166: 0.79 | J166: 0.79
G167: 0 | H167: 0 | I167: 0 | J167: 0
B168: MATERIAL (C) - TOTAL | I168: 206.37 | J168: 206.37
A170: 235 | B170: FONTE | C170: CÓDIGO | D170: DESCRIÇÃO | E170: UNIDADE | F170: COEFIC. | G170: CUSTO UNITÁRIO | I170: CUSTO TOTAL (A) + (B) + (C) + (D) + (E)
G171: DESONERADO | H171: NÃO DESONER. | I171: DESONERADO | J171: NÃO DESONER.
B172: COMPOSIÇÃO | C172: COMP 235_SEE | D172: PLACA DE SINALIZAÇÃO EM PVC COD 01 - (300X300) PROIBIDO FUMAR | E172: UN | I172: 25.27 | J172: 25.39
B173: AGETOP_I | C173: 5 | D173: SERVENTE | E173: h | F173: 0.09 | G173: 8.2 | H173: 9.51 | I173: 0.74 | J173: 0.86
G174: 0 | H174: 0 | I174: 0 | J174: 0
G175: 0 | H175: 0 | I175: 0 | J175: 0
B176: MÃO DE OBRA (B) - TOTAL | I176: 0.74 | J176: 0.86
B177: AGETOP_I | C177: 3070 | D177: BUCHA DE NYLON S-6 | E177: un | F177: 2 | G177: 0.04 | H177: 0.04 | I177: 0.08 | J177: 0.08
B178: AGETOP_I | C178: 3393 | D178: PARAFUSO P/BUCHA S-6 | E178: un | F178: 2 | G178: 0.08 | H178: 0.08 | I178: 0.16 | J178: 0.16
B179: SINAPI_I | C179: 37556 | D179: PLACA DE SINALIZACAO DE SEGURANCA CONTRA INCENDIO, FOTOLUMINESCENTE, QUADRADA, *20 X 20* CM, EM PVC *2* MM ANTI-CHAMAS (SIMBOLOS, CORES E PICTOGRAMAS CONFORME NBR 13434) | E179: UN | F179: 1 | G179: 24.29 | H179: 24.29 | I179: 24.29 | J179: 24.29
B180: MATERIAL (C) - TOTAL | I180: 24.53 | J180: 24.53
A182: 236 | B182: FONTE | C182: CÓDIGO | D182: DESCRIÇÃO | E182: UNIDADE | F182: COEFIC. | G182: CUSTO UNITÁRIO | I182: CUSTO TOTAL (A) + (B) + (C) + (D) + (E)
G183: DESONERADO | H183: NÃO DESONER. | I183: DESONERADO | J183: NÃO DESONER.
B184: COMPOSIÇÃO | C184: COMP 236_SEE | D184: PLACA DE SINALIZAÇÃO EM PVC COD 06 - (300X300) PERIGO INFLAMÁVEL | E184: UN | I184: 25.27 | J184: 25.39
B185: AGETOP_I | C185: 5 | D185: SERVENTE | E185: h | F185: 0.09 | G185: 8.2 | H185: 9.51 | I185: 0.74 | J185: 0.86
G186: 0 | H186: 0 | I186: 0 | J186: 0
G187: 0 | H187: 0 | I187: 0 | J187: 0
B188: MÃO DE OBRA (B) - TOTAL | I188: 0.74 | J188: 0.86
B189: AGETOP_I | C189: 3070 | D189: BUCHA DE NYLON S-6 | E189: un | F189: 2 | G189: 0.04 | H189: 0.04 | I189: 0.08 | J189: 0.08
B190: AGETOP_I | C190: 3393 | D190: PARAFUSO P/BUCHA S-6 | E190: un | F190: 2 | G190: 0.08 | H190: 0.08 | I190: 0.16 | J190: 0.16
B191: SINAPI_I | C191: 37556 | D191: PLACA DE SINALIZACAO DE SEGURANCA CONTRA INCENDIO, FOTOLUMINESCENTE, QUADRADA, *20 X 20* CM, EM PVC *2* MM ANTI-CHAMAS (SIMBOLOS, CORES E PICTOGRAMAS CONFORME NBR 13434) | E191: UN | F191: 1 | G191: 24.29 | H191: 24.29 | I191: 24.29 | J191: 24.29
B192: MATERIAL (C) - TOTAL | I192: 24.53 | J192: 24.53
A194: 83 | B194: FONTE | C194: CÓDIGO | D194: DESCRIÇÃO | E194: UNIDADE | F194: COEFIC. | G194: CUSTO UNITÁRIO | I194: CUSTO TOTAL (A) + (B) + (C) + (D) + (E)
G195: DESONERADO | H195: NÃO DESONER. | I195: DESONERADO | J195: NÃO DESONER.
B196: COMPOSIÇÃO | C196: COMP 083_SEE | D196: CORRIMÃO PISO - SEDUC | E196: M | I196: 141.9 | J196: 145.95
B197: AGETOP_I | C197: 25 | D197: OFICIAL "B" | E197: h | F197: 1 | G197: 13.4 | H197: 15.53 | I197: 13.4 | J197: 15.53
B198: AGETOP_I | C198: 8 | D198: AJUDANTE | E198: h | F198: 1 | G198: 8.2 | H198: 9.51 | I198: 8.2 | J198: 9.51
B199: MÃO DE OBRA (B) - TOTAL | I199: 21.6 | J199: 25.04
B200: AGETOP_I | C200: 2376 | D200: TUBO INDUSTRIAL 2" CHAPA 13 | E200: Kg | F200: 8.21975 | G200: 5.23 | H200: 5.23 | I200: 42.99 | J200: 42.99
B201: AGETOP_I | C201: 2504 | D201: TUBO INDUSTRIAL D=25 MM CHAPA 13 | E201: Kg | F201: 1.1 | G201: 5.07 | H201: 5.07 | I201: 5.58 | J201: 5.58
B202: AGETOP_I | C202: 2417 | D202: MASSA PLASTICA | E202: Kg | F202: 0.2041 | G202: 10.58 | H202: 10.58 | I202: 2.16 | J202: 2.16
B203: AGETOP_I | C203: 2246 | D203: ELETRODO 2.5 OK | E203: Kg | F203: 0.1146 | G203: 8.7 | H203: 8.7 | I203: 1 | J203: 1
B204: AGETOP_I | C204: 1672 | D204: LIXA PARA FERRO ( NÚMERO 100 ) | E204: un | F204: 0.125 | G204: 2.12 | H204: 2.12 | I204: 0.27 | J204: 0.27
B205: AGETOP_I | C205: 1264 | D205: DISCO DE DESBASTE 7/8" P/ CONC./FERRO (1/4" X 7") | E205: un | F205: 0.025 | G205: 7 | H205: 7 | I205: 0.18 | J205: 0.18
B206: AGETOP_I | C206: 1334 | D206: DISCO DE CORTE DIAM. 5/8"- 10" | E206: un | F206: 0.1865 | G206: 5.5 | H206: 5.5 | I206: 1.03 | J206: 1.03
B207: AGETOP_I | C207: 2902 | D207: FABRICAÇÃO / MONTAGEM | E207: un | F207: 1 | G207: 50.44 | H207: 50.44 | I207: 50.44 | J207: 50.44
B208: AGETOP_I | C208: 2150 | D208: CHAPA DE FERRO DOBRADA No.13 | E208: Kg | F208: 0.4352 | G208: 5.28 | H208: 5.28 | I208: 2.3 | J208: 2.3
B209: AGETOP_I | C209: 2719 | D209: CHAPA PERFILADA 3/16" | E209: Kg | F209: 1.1644 | G209: 5.04 | H209: 5.04 | I209: 5.87 | J209: 5.87
B210: AGETOP_I | C210: 2436 | D210: ACO CA-25 - 6,3 MM (1/4") - BARRA LISA A-36 | E210: Kg | F210: 0.4815 | G210: 5.13 | H210: 5.13 | I210: 2.47 | J210: 2.47
B211: AGETOP | C211: 261602 | D211: PINT.ESMALTE/ESQUAD.FERRO C/FUNDO ANTICOR. | E211: m2 | F211: 0.44 | G211: 13.65 | H211: 15.04 | I211: 6.01 | J211: 6.62
B212: MATERIAL (C) - TOTAL | I212: 120.3 | J212: 120.91
A214: 209 | B214: FONTE | C214: CÓDIGO | D214: DESCRIÇÃO | E214: UNIDADE | F214: COEFIC. | G214: CUSTO UNITÁRIO | I214: CUSTO TOTAL (A) + (B) + (C) + (D) + (E)
G215: DESONERADO | H215: NÃO DESONER. | I215: DESONERADO | J215: NÃO DESONER.
B216: COMPOSIÇÃO | C216: COMP 209_SEE | D216: TOALHEIRO PLÁSTICO TIPO DISPENSER PARA PAPEL TOALHA INTERFOLHADO | E216: UN | I216: 52.15 | J216: 53.01
B217: AGETOP_I | C217: 8 | D217: AJUDANTE | E217: h | F217: 0.25 | G217: 8.2 | H217: 9.51 | I217: 2.05 | J217: 2.38
B218: AGETOP_I | C218: 4 | D218: PEDREIRO | E218: h | F218: 0.25 | G218: 13.4 | H218: 15.53 | I218: 3.35 | J218: 3.88
B219: MÃO DE OBRA (B) - TOTAL | I219: 5.4 | J219: 6.26
B220: SINAPI_I | C220: 37401 | D220: TOALHEIRO PLASTICO TIPO DISPENSER PARA PAPEL TOALHA INTERFOLHADO | E220: UN | F220: 1 | G220: 45.95 | H220: 45.95 | I220: 45.95 | J220: 45.95
B221: AGETOP_I | C221: 2221 | D221: PARAFUSO COM BUCHA S-8 | E221: un | F221: 4 | G221: 0.2 | H221: 0.2 | I221: 0.8 | J221: 0.8
B222: MATERIAL (C) - TOTAL | I222: 46.75 | J222: 46.75
... 24 more rows
